{"text_format":"1","workbook":"xlsx","n_sheets":3,"sheets":["Formular","Daten","Stammdaten"],"not_rendered":{"charts":0,"images":8,"macros":1,"external_links":0,"defined_names":24,"comments":2,"pivot_tables":0},"unopened":[],"bounds":{"document_bytes":16777216,"sheet_cells":100000,"rows_first":2000,"rows_last":500,"rows_between":2000,"halvings":0,"cell_chars":16384,"cell_head_chars":4096},"cells_cut":0,"cells_raw":0,"read":"whole","date_system":"1900"}

{"sheet":"Formular","index":0,"n_rows":23,"n_cols":18,"rows_kept":23,"cut":false,"hidden":false,"merged":[[11,17,31,17],[99,0,99,1],[99,2,99,7],[99,12,99,13],[100,0,100,1],[100,2,100,7],[100,12,100,13],[101,0,101,1],[101,2,101,7],[101,12,101,13],[99,8,99,10],[100,8,100,10],[101,8,101,10],[96,0,96,1],[96,2,96,7],[96,12,96,13],[97,0,97,1],[97,2,97,7],[97,12,97,13],[98,0,98,1],[98,2,98,7],[98,12,98,13],[96,8,96,10],[97,8,97,10],[98,8,98,10],[93,0,93,1],[93,2,93,7],[93,12,93,13],[94,0,94,1],[94,2,94,7],[94,12,94,13],[95,0,95,1],[95,2,95,7],[95,12,95,13],[93,8,93,10],[94,8,94,10],[95,8,95,10],[90,0,90,1],[90,2,90,7],[90,12,90,13],[91,0,91,1],[91,2,91,7],[91,12,91,13],[92,0,92,1],[92,2,92,7],[92,12,92,13],[90,8,90,10],[91,8,91,10],[92,8,92,10],[87,0,87,1],[87,2,87,7],[87,12,87,13],[88,0,88,1],[88,2,88,7],[88,12,88,13],[89,0,89,1],[89,2,89,7],[89,12,89,13],[87,8,87,10],[88,8,88,10],[89,8,89,10],[84,0,84,1],[84,2,84,7],[84,12,84,13],[85,0,85,1],[85,2,85,7],[85,12,85,13],[86,0,86,1],[86,2,86,7],[86,12,86,13],[84,8,84,10],[85,8,85,10],[86,8,86,10],[81,0,81,1],[81,2,81,7],[81,12,81,13],[82,0,82,1],[82,2,82,7],[82,12,82,13],[83,0,83,1],[83,2,83,7],[83,12,83,13],[81,8,81,10],[82,8,82,10],[83,8,83,10],[78,0,78,1],[78,2,78,7],[78,12,78,13],[79,0,79,1],[79,2,79,7],[79,12,79,13],[80,0,80,1],[80,2,80,7],[80,12,80,13],[78,8,78,10],[79,8,79,10],[80,8,80,10],[75,0,75,1],[75,2,75,7],[75,12,75,13],[76,0,76,1],[76,2,76,7],[76,12,76,13],[77,0,77,1],[77,2,77,7],[77,12,77,13],[75,8,75,10],[76,8,76,10],[77,8,77,10],[72,0,72,1],[72,2,72,7],[72,12,72,13],[73,0,73,1],[73,2,73,7],[73,12,73,13],[74,0,74,1],[74,2,74,7],[74,12,74,13],[72,8,72,10],[73,8,73,10],[74,8,74,10],[69,0,69,1],[69,2,69,7],[69,12,69,13],[70,0,70,1],[70,2,70,7],[70,12,70,13],[71,0,71,1],[71,2,71,7],[71,12,71,13],[69,8,69,10],[70,8,70,10],[71,8,71,10],[66,0,66,1],[66,2,66,7],[66,12,66,13],[67,0,67,1],[67,2,67,7],[67,12,67,13],[68,0,68,1],[68,2,68,7],[68,12,68,13],[66,8,66,10],[67,8,67,10],[68,8,68,10],[63,0,63,1],[63,2,63,7],[63,12,63,13],[64,0,64,1],[64,2,64,7],[64,12,64,13],[65,0,65,1],[65,2,65,7],[65,12,65,13],[63,8,63,10],[64,8,64,10],[65,8,65,10],[60,0,60,1],[60,2,60,7],[60,12,60,13],[61,0,61,1],[61,2,61,7],[61,12,61,13],[62,0,62,1],[62,2,62,7],[62,12,62,13],[60,8,60,10],[61,8,61,10],[62,8,62,10],[57,0,57,1],[57,2,57,7],[57,12,57,13],[58,0,58,1],[58,2,58,7],[58,12,58,13],[59,0,59,1],[59,2,59,7],[59,12,59,13],[57,8,57,10],[58,8,58,10],[59,8,59,10],[53,12,53,13],[54,0,54,1],[54,2,54,7],[54,12,54,13],[55,0,55,1],[55,2,55,7],[55,12,55,13],[56,0,56,1],[56,2,56,7],[56,12,56,13],[54,8,54,10],[55,8,55,10],[56,8,56,10],[48,12,48,13],[49,2,49,7],[49,12,49,13],[50,2,50,7],[50,12,50,13],[51,0,51,1],[51,2,51,7],[51,12,51,13],[52,0,52,1],[52,2,52,7],[52,12,52,13],[0,0,0,15],[11,10,11,12],[2,1,2,5],[3,1,3,5],[4,1,4,5],[6,9,6,12],[11,5,11,6],[3,6,3,7],[24,12,24,13],[5,2,5,5],[6,2,6,5],[2,0,4,0],[4,6,4,7],[21,0,21,1],[21,2,21,7],[21,8,21,10],[10,2,10,4],[11,7,11,9],[11,3,11,4],[12,1,12,4],[15,5,15,12],[16,5,16,12],[14,4,14,12],[19,3,19,6],[26,12,26,13],[27,0,27,1],[27,2,27,7],[27,12,27,13],[28,0,28,1],[28,2,28,7],[28,12,28,13],[25,0,25,1],[25,2,25,7],[25,12,25,13],[31,12,31,13],[32,0,32,1],[32,2,32,7],[32,12,32,13],[29,0,29,1],[29,2,29,7],[29,12,29,13],[30,0,30,1],[30,2,30,7],[30,12,30,13],[29,8,29,10],[30,8,30,10],[31,8,31,10],[32,8,32,10],[35,12,35,13],[36,0,36,1],[36,2,36,7],[36,12,36,13],[33,0,33,1],[33,2,33,7],[33,12,33,13],[34,0,34,1],[34,2,34,7],[34,12,34,13],[33,8,33,10],[34,8,34,10],[35,8,35,10],[36,8,36,10],[39,12,39,13],[40,0,40,1],[40,2,40,7],[40,12,40,13],[40,8,40,10],[37,0,37,1],[37,2,37,7],[37,12,37,13],[38,0,38,1],[38,2,38,7],[38,12,38,13],[37,8,37,10],[38,8,38,10],[39,8,39,10],[47,12,47,13],[18,0,18,1],[45,0,45,1],[45,2,45,7],[45,12,45,13],[46,0,46,1],[46,2,46,7],[46,12,46,13],[43,0,43,1],[43,2,43,7],[43,12,43,13],[44,0,44,1],[44,2,44,7],[44,12,44,13],[41,0,41,1],[41,2,41,7],[41,12,41,13],[42,0,42,1],[42,2,42,7],[42,12,42,13],[41,8,41,10],[42,8,42,10],[43,8,43,10],[44,8,44,10],[46,8,46,10],[47,8,47,10],[48,8,48,10],[49,8,49,10],[50,8,50,10],[51,8,51,10],[52,8,52,10],[53,8,53,10],[47,0,47,1],[47,2,47,7],[48,0,48,1],[49,0,49,1],[50,0,50,1],[48,2,48,7],[53,0,53,1],[53,2,53,7],[45,8,45,10],[39,0,39,1],[39,2,39,7],[35,0,35,1],[35,2,35,7],[31,0,31,1],[31,2,31,7],[24,0,24,1],[24,2,24,7],[25,8,25,10],[24,8,24,10],[27,8,27,10],[28,8,28,10],[26,0,26,1],[26,2,26,7],[26,8,26,10],[19,8,19,15],[18,3,18,15],[12,5,12,6],[22,0,22,1],[22,2,22,7],[22,8,22,10],[22,12,22,13],[23,0,23,1],[23,2,23,7],[23,8,23,10],[23,12,23,13],[21,12,21,13],[21,14,21,15],[22,14,22,15],[23,14,23,15],[24,14,24,15],[25,14,25,15],[26,14,26,15],[27,14,27,15],[28,14,28,15],[29,14,29,15],[30,14,30,15],[31,14,31,15],[32,14,32,15],[33,14,33,15],[34,14,34,15],[35,14,35,15],[36,14,36,15],[37,14,37,15],[38,14,38,15],[39,14,39,15],[40,14,40,15],[41,14,41,15],[42,14,42,15],[43,14,43,15],[44,14,44,15],[45,14,45,15],[46,14,46,15],[47,14,47,15],[48,14,48,15],[49,14,49,15],[50,14,50,15],[51,14,51,15],[52,14,52,15],[53,14,53,15],[54,14,54,15],[55,14,55,15],[56,14,56,15],[57,14,57,15],[58,14,58,15],[59,14,59,15],[60,14,60,15],[61,14,61,15],[62,14,62,15],[63,14,63,15],[64,14,64,15],[65,14,65,15],[66,14,66,15],[67,14,67,15],[68,14,68,15],[84,14,84,15],[85,14,85,15],[86,14,86,15],[69,14,69,15],[70,14,70,15],[71,14,71,15],[72,14,72,15],[73,14,73,15],[74,14,74,15],[75,14,75,15],[76,14,76,15],[77,14,77,15],[9,6,9,13],[7,2,7,9],[96,14,96,15],[97,14,97,15],[98,14,98,15],[99,14,99,15],[100,14,100,15],[101,14,101,15],[9,2,9,3],[87,14,87,15],[88,14,88,15],[89,14,89,15],[90,14,90,15],[91,14,91,15],[92,14,92,15],[93,14,93,15],[94,14,94,15],[95,14,95,15],[78,14,78,15],[79,14,79,15],[80,14,80,15],[81,14,81,15],[82,14,82,15],[83,14,83,15]]}
["Hessischer Kegler- u. Bowling-Verband e.V.  Sektion Bowling",null,null,null,null,null,null,null,null,null,null,null,null,null,null,null,null,"Die gelben Felder sind auszufüllen"]
["Meldebogen HM 2019 - 2020",null,null,null,null,null,null,null,"Einzel Damen und Herren"]
["Leitung:",{"$f":"VLOOKUP(I2,event,3,FALSE)","v":"Edgar Müller"},null,null,null,null,"Datum",null,"Ort",null,null,"Startzeiten:",null,null,null,null,null,"Achtung: "]
[null,{"$f":"VLOOKUP(I2,event,5,FALSE)","v":"Wolfstr. 10 "},null,null,null,null,{"$f":"VLOOKUP(I2,event,15,FALSE)","v":"2020-02-01"},null,{"$f":"VLOOKUP(I2,event,13,FALSE)","v":"Mühlheim"},null,null,{"$f":"IF(ISERROR(VLOOKUP(I2,event,17,FALSE)),\"\",VLOOKUP(I2,event,17,FALSE))","v":"09:00:00"},{"$f":"IF(ISERROR(VLOOKUP(I2,event,18,FALSE)),\"\",VLOOKUP(I2,event,18,FALSE))","v":"12:30:00"},{"$f":"IF(ISERROR(VLOOKUP(I2,event,19,FALSE)),\"\",VLOOKUP(I2,event,19,FALSE))","v":"16:00:00"},{"$f":"IF(ISERROR(VLOOKUP(J2,event,19,FALSE)),\"\",VLOOKUP(J2,event,19,FALSE))","v":""},{"$f":"IF(ISERROR(VLOOKUP(K2,event,19,FALSE)),\"\",VLOOKUP(K2,event,19,FALSE))","v":""},null,"Die Junioren spielen zusammen mit den Aktiven (Damen/Herren) mit gemeinsamer Wertung)."]
[null,{"$f":"VLOOKUP(I2,event,4,FALSE)","v":"63457 Hanau"},null,null,null,null,{"$f":"VLOOKUP(I2,event,16,FALSE)","v":"2020-02-02"},null,{"$f":"VLOOKUP(I2,event,14,FALSE)","v":"Eschersheim"},null,null,"Aus Ausschreibung entnehmen",null,null,null,null,null,"In die Betreffzeile der E-Mail ist als erstes die Clubnummer und der Clubname einzutragen "]
[null,"Tel",{"$f":"VLOOKUP(I2,event,6,FALSE)","v":"0170 / 8013807"},null,null,null,"Startplätze pro Start",null,null,{"$f":"VLOOKUP(I2,event,12,FALSE)","v":36}]
[null,"Fax",{"$f":"VLOOKUP(I2,event,7,FALSE)","v":0},null,null,null,"Meldeschluss:",null,null,{"$f":"VLOOKUP(I2,event,9,FALSE)","v":"2020-01-20"},null,null,null,null,null,null,null,"Wenn Spieler noch nicht bekannt"]
[null,"E-Mail",{"$f":"VLOOKUP(I2,event,8,FALSE)","v":"eddy.mueller@t-online.de"},null,null,null,null,null,null,null,null,null,null,null,null,null,null,"Edv-Nr = 0 "]
["(bitte den vollständig ausgefüllten Meldebogen als xls an die Leitung senden - Adresse obenstehend)",null,null,null,null,null,null,null,null,null,null,null,null,null,null,null,null,"Name = Unbekannt"]
["Verein / Club:",null,8083,null,null,null,"1. BV Kelsterbach",null,null,null,null,null,null,null,null,null,null,"Eingeben"]
[]
["Wir melden:",null,null,"Starts á ",null,{"$f":"VLOOKUP(I2,event,10,FALSE)","v":18},null,"Gesamtbetrag von ",null,null,{"$f":"F12*C12","v":0},null,null,null,null,null,null,"Bei Eingabe einer EDV-Nr in Spalte 1 ab Zeile 23 \nund drücken der Taste Enter werden die dazu gehörigen Spielerdaten eingesetzt.\n\nLinkes Auswahlfeld: Es kann mit der EDV-Nr gesucht werden. Die dazu gehörigen Spielerdaten werden angezeigt und nach drücken der Taste Enter nach dem letzten Datensatz eingefügt.\n\nRechtes Auswahlfeld: Es kann mit dem Nachnamen gesucht werden. Die dazu gehörigen Spielerdaten werden angezeigt und nach Drücken der Taste Enter  nach dem letzten Datensatz eingefügt.\n\nIm Bereich der Spielerdaten werden keine Formeln mehr verwand. \n\nWenn nach Eingabe der EDV Nr, keine Daten Angezeigt werden dann bitte die Daten manuell eintragen\nMit dem Kontrollkasten \"Nur Club anzeigenW wird zwischen alle Spieler oder nur Club umgeschaltet \n\n\n"]
[null,"Bei Zahlung vor Ort",null,null,null,{"$f":"VLOOKUP(I2,event,11,FALSE)","v":20}]
[]
["Bitte den Gesamtbetrag an die",null,null,null,{"$f":"VLOOKUP(I2,event,29,FALSE)","v":"HKBV e.V. - Sektion Bowling   Sparkasse Dieburg"}]
[null,null,null,null,"IBAN: ",{"$f":"VLOOKUP(I2,event,27,FALSE)","v":"DE 28 5085 2651 0136 0071 84"}]
[null,null,null,null,"BIC:    ",{"$f":"VLOOKUP(I2,event,28,FALSE)","v":"HELADEF1DIE"}]
["überweisen und die Kopie  des Überweisungsbelegs der Anmeldung beilegen."]
["Gemeldet von:",null,null,"Laun Werner"]
["Kontktdaten:",null,"Tel.:",null,null,null,null,"e Mail:"]
["EDV Nr suchen",null,null,null,null,"Namen suchen"]
["EDV Nr",null,"Name",null,null,null,null,null,"Vorname",null,null,"RL","AK",null,"Startzeit"]
[15043,null,"Rühl",null,null,null,null,null,"Marion",null,null,"D","Sen B"]

{"sheet":"Daten","index":1,"n_rows":79,"n_cols":29,"rows_kept":79,"cut":false,"hidden":false,"merged":[]}
[null,"Anz Team",null,null,null,null,null,null,null,null,null,null,null,null,null,null,"Startzeiten Vorlauf",null,null,null,null,"Startzeiten ab 2 Runde"]
["Event",null,"Leitung","ort","Strasse","Tel","Fax","E-Mail","meldschluß","startgebühr","vor ort","prostart","spielort1","spielort2","Von","Bis","start1","start2","start3","start4","start5","start6","start7","start8","start9",null,"Iban","Bic","Bank"]
["Trio Damen und Herren","3","Edgar Müller","63457 Hanau","Wolfstr. 10 ","0170 / 8013807",null,"eddy.mueller@t-online.de",{"$f":"O3-13","v":"2019-10-06"},54,60,16,"Mühlheim","Langen","2019-10-19",{"$f":"O3+1","v":"2019-10-20"},"09:00:00","12:30:00","16:00:00",null,null,null,null,null,null,null,"DE 28 5085 2651 0136 0071 84","HELADEF1DIE","HKBV e.V. - Sektion Bowling   Sparkasse Dieburg"]
["Mixed Doppel","2","Edgar Müller","63457 Hanau","Wolfstr. 10 ","0170 / 8013807",null,"eddy.mueller@t-online.de",{"$f":"O4-13","v":"2019-10-20"},36,40,18,"Linden","Rebstock","2019-11-02","2019-11-03","09:00:00","12:30:00","16:00:00",null,null,null,null,null,null,null,"DE 28 5085 2651 0136 0071 84","HELADEF1DIE","HKBV e.V. - Sektion Bowling   Sparkasse Dieburg"]
["Seniorinnen, Senioren Trio","3","Peter Siedentopf","61476 Kronberg","Talweg 1","06173 / 5718",null,"\nsektionsseniorenwart-bowling@hkbv-ev.de",{"$f":"O5-12","v":"2019-12-30"},54,60,22,"Wiesbaden","Eschersheim","2020-01-11","2020-01-12","09:00:00","13:45:00",null,null,null,null,null,null,null,null,"DE 28 5085 2651 0136 0071 84","HELADEF1DIE","HKBV e.V. - Sektion Bowling   Sparkasse Dieburg"]
["Junioren Einzel","1","Edgar Müller","63457 Hanau","Wolfstr. 10 ","0170 / 8013807",null,"eddy.mueller@t-online.de",{"$f":"O6-12","v":"2020-01-20"},18,20,32,"Mühlheim","Eschersheim","2020-02-01","2020-02-02","09:00:00","12:30:00","16:00:00",null,null,null,null,null,null,null,"DE 28 5085 2651 0136 0071 84","HELADEF1DIE","HKBV e.V. - Sektion Bowling   Sparkasse Dieburg"]
["Einzel Damen und Herren","1","Edgar Müller","63457 Hanau","Wolfstr. 10 ","0170 / 8013807",null,"eddy.mueller@t-online.de",{"$f":"O7-12","v":"2020-01-20"},18,20,36,"Mühlheim","Eschersheim","2020-02-01","2020-02-02","09:00:00","12:30:00","16:00:00",null,null,null,null,null,null,null,"DE 28 5085 2651 0136 0071 84","HELADEF1DIE","HKBV e.V. - Sektion Bowling   Sparkasse Dieburg"]
["Jugend Einzel",1,"Gabi Brandes","60529 Frankfurt","Völklingerweg 23","0162 / 9640749",null,"sektionsjugendwart-bowling@hkbv-ev.de",{"$f":"O8-13","v":"2020-01-19"},20,22,16,"Kelsterbach","Eschersheim","2020-02-01","2020-02-02","13:00:00","16:00:00",null,null,null,null,null,null,null,null,"DE 28 5085 2651 0136 0071 84","HELADEF1DIE","HKBV e.V. - Sektion Bowling   Sparkasse Dieburg"]
["Seniorinnen, Senioren und Versehrte Einzel","1","Peter Siedentopf","61476 Kronberg","Talweg 1","06173 / 5718",null,"\nsektionsseniorenwart-bowling@hkbv-ev.de",{"$f":"O9-13","v":"2020-02-16"},18,20,44,"Wiesbaden","Eschersheim","2020-02-29","2020-03-01","09:00:00","12:40:00","16:20:00",null,null,null,null,null,null,null,"DE 28 5085 2651 0136 0071 84","HELADEF1DIE","HKBV e.V. - Sektion Bowling   Sparkasse Dieburg"]
["Damen und Herren Doppel","2","Edgar Müller","63457 Hanau","Wolfstr. 10 ","0170 / 8013807",null,"eddy.mueller@t-online.de",{"$f":"O10-13","v":"2020-03-08"},36,40,22,"Wiesbaden","Viernheim","2020-03-21","2020-03-22","09:00:00","12:40:00","16:20:00",null,null,null,null,null,null,null,"DE 28 5085 2651 0136 0071 84","HELADEF1DIE","HKBV e.V. - Sektion Bowling   Sparkasse Dieburg"]
[]
[]
[]
[]
[]
[]
[]
[]
[]
[]
[]
[]
[]
[null,null,null,null,null,null,null,null,null," "]
[]
[]
["Club"]
[{"$f":"B29&\" \"&D29","v":"8003 BC Darmstadt"},8002,"KBVS Schwanheim","AAN Schwanheim",null,null,null,null,null,null,null,null,"was"]
["8004 BSV Dieburg",8003,"1. BSV Darmstadt 1973","BC Darmstadt",null,null,null,null,null,null,null,null,"was"]
["8005 BC Eberstadt",8004,"1. BSV Dieburg e.V. 1992","BSV Dieburg",null,null,null,null,null,null,null,null,"was"]
["8007 BC 2000 Aschaffenburg",8005,"1. BSV Eberstadt","BC Eberstadt",null,null,null,null,null,null,null,null,"was"]
["8009 ABV Frankfurt",8007,"1. BV Aschaffenburg e.V.","BC 2000 Aschaffenburg",null,null,null,null,null,null,null,null,"was"]
["8010 BC Bad Hersfeld",8009,"ABV Frankfurt","ABV Frankfurt",null,null,null,null,null,null,null,null,"was"]
["8011 Cosmos Wiesbaden",8010,"BC Bad Hersfeld","BC Bad Hersfeld"]
["8019 BSV Oberrad",8011,"BC Cosmos Wiesbaden","Cosmos Wiesbaden"]
["8024 Finale Kassel",8019,"BSV 1990 Oberrad","BSV Oberrad"]
["8025 BC Langen 83",8024,"BSV Kassel","Finale Kassel"]
["8026 BC Nord West Ffm",8025,"BSV Langen 83","BC Langen 83"]
["8027 BV 1987 Frankfurt",8026,"BSV Nord West Frankfurt","BC Nord West Ffm"]
["8028 BV 77 Frankfurt",8027,"BV 1987 Frankfurt","BV 1987 Frankfurt"]
["8030 Phönix Frankfurt",8028,"BV 77 Frankfurt","BV 77 Frankfurt"]
["8031 BC Blau-Gelb Frankfurt",8030,"BV 95 Phönix Frankfurt e.V.","Phönix Frankfurt"]
["8032 I-Bahn SC 34 Ffm",8031,"BV Blau-Gelb Frankfurt e.V.","BC Blau-Gelb Frankfurt"]
["8033 SBV",8032,"BV City Frankfurt","I-Bahn SC 34 Ffm"]
["8036 BV Frankfurt Süd",8033,"BV City Frankfurt","SBV"]
["8037 BC 2005 Frankfurt",8036,"BV Frankfurt Süd","BV Frankfurt Süd"]
["8038 BC Höchst",8037,"BV Frankfurt West","BC 2005 Frankfurt"]
["8039 BC Mühlheim",8038,"BV Höchst e.V.","BC Höchst"]
["8041 BC Devils",8039,"BV Mühlheim","BC Mühlheim"]
["8042 BV Oranje Frankfurt",8041,"BV Oberstedtener Devils e.V.","BC Devils"]
["8044 BC Rebstock Ffm",8042,"BV Oranje Frankfurt","BV Oranje Frankfurt"]
["8045 BV Römer Frankfurt",8044,"BV Rebstock","BC Rebstock Ffm"]
["8047 FSV Frankfurt",8045,"BV Römer Frankfurt","BV Römer Frankfurt"]
["8048 FTG-BC Frankfurt",8047,"FSV Frankfurt","FSV Frankfurt"]
["8050 BC 83 Kelsterbach",8048,"FTG 1847 Frankfurt","FTG-BC Frankfurt"]
["8053 Mainhattan Bowlers Ffm",8050,"KBV Kelsterbach","BC 83 Kelsterbach"]
["8054 SW Friedberg",8053,"Mainhattan Bowlers Ffm","Mainhattan Bowlers Ffm"]
["8069 BC Wiesbaden",8054,"Schwarz Weiss Friedberg","SW Friedberg"]
["8072 Bowlingsportclub Bensheim 08 e.V",8069,"BC Wiesbaden e.V.","BC Wiesbaden"]
["8073 Citystrikers",8072,"Bowlingsportclub Bensheim 08 e.V","Bowlingsportclub Bensheim 08 e.V"]
["8076 BC Gießen",8073,"BC Citystrikers","Citystrikers"]
["8077 BC 67 Hanau",8076,"1. BSV Gießen","BC Gießen"]
["8078 Condor Steinheim",8077,"BV Hanau","BC 67 Hanau"]
["8079 TSV 1860 Hanau",8078,"BV Hanau","Condor Steinheim"]
["8081 BC Fusion Langen e.V.",8079,"BV Hanau","TSV 1860 Hanau"]
["8082 BC 75 Fortuna",8081,"BC Fusion Langen e.V.","BC Fusion Langen e.V."]
["8083 1. BV Kelsterbach",8082,"BV Hanau","BC 75 Fortuna"]
["8084 Queer-Striker",8083,"1. BV Kelsterbach e.V.","1. BV Kelsterbach"]
["8085 Blau-Gelb Fulda Strikers",8084,"Frankfurter Volleyball Verein e.V.","Queer-Striker"]
["26079 BV Pinoy Frankfurt",8085,"PSV BG Fulda 1934/61 e.V.","Blau-Gelb Fulda Strikers"]
[" ",26079,"BV Pinoy Frankfurt e.V.","BV Pinoy Frankfurt"]
[" "]
[" "]
[" "]
[" "]
[" "]
[" "]
[" "]
[" "]

{"sheet":"Stammdaten","index":2,"n_rows":1546,"n_cols":23,"rows_kept":1546,"cut":false,"hidden":true,"merged":[]}
["suchen","Pass-Nr.","EDV-Nr.","Nachname","Vorname","Alertskl.","Rangl.","Club","Verein",null,"Jun",8735,"Club",null,"suchen","Pass-Nr.","EDV-Nr.","Nachname","Vorname","Alertskl.","Rangl.","Club","Verein"]
[{"$f":"D2&\" \"&C2","v":"Stichling 218"},3950,218,"Stichling","Christopher","Herren","B","Phönix Frankfurt","BV 95 Phönix Frankfurt e.V.",null,null,null,"1. BV Kelsterbach",null,"Brandes 8138",40042,8138,"Brandes","Gabriele","Sen A","C","1. BV Kelsterbach","1. BV Kelsterbach e.V."]
[{"$f":"D3&\" \"&C3","v":"Hemmelmann 302"},51852,302,"Hemmelmann","Dirk","Herren","C","ABV Frankfurt","ABV Frankfurt",null,null,null,null,null,"Caldwell 8179",100471,8179,"Caldwell","Thomas","Sen A","D","1. BV Kelsterbach","1. BV Kelsterbach e.V."]
["Meinhardt 371",63491,371,"Meinhardt","Olaf","Sen A","D","Citystrikers","BC Citystrikers",null,"Damen",null,null,null,"Duplois-Laun 8264",66849,8264,"Duplois-Laun","Petra","Sen B","B","1. BV Kelsterbach","1. BV Kelsterbach e.V."]
["Faull 685",144515,685,"Faull","Roland","Sen A","E","Queer-Striker","Frankfurter Volleyball Verein e.V.",null,"Herren",null,null,null,"Laun 8735",109,8735,"Laun","Werner","Sen B","B","1. BV Kelsterbach","1. BV Kelsterbach e.V."]
["Kaiser 966",69480,966,"Kaiser","Gerd","Herren","A","FTG-BC Frankfurt","FTG 1847 Frankfurt",null,"Jug A",null,null,null,"Nolte 8895",66854,8895,"Nolte","Joachim","Sen A","B","1. BV Kelsterbach","1. BV Kelsterbach e.V."]
["Gabel 1447",56701,1447,"Gabel","Janine-Manuela","Damen","A","FTG-BC Frankfurt","FTG 1847 Frankfurt",null,"Jug B",null,null,null,"Pelz 8931",27452,8931,"Pelz","Marianne","Sen B","B","1. BV Kelsterbach","1. BV Kelsterbach e.V."]
["Catibog 3288",130764,3288,"Catibog","Ernesto","Herren","A","BV 1987 Frankfurt","BV 1987 Frankfurt",null,"Jug C",null,null,null,"Siemonsen-Caldwell 10366",106953,10366,"Siemonsen-Caldwell","Melanie","Damen","D","1. BV Kelsterbach","1. BV Kelsterbach e.V."]
["Schuster 4377",146182,4377,"Schuster","Norbert","Sen A",0,"Bowlingsportclub Bensheim 08 e.V","Bowlingsportclub Bensheim 08 e.V",null,"Sen A",null,null,null,"Rühl 15043",66851,15043,"Rühl","Marion","Sen B","D","1. BV Kelsterbach","1. BV Kelsterbach e.V."]
["Kehr 6113",39343,6113,"Kehr","Marco","Herren","A","BC Gießen","1. BSV Gießen",null,"Sen B",null,null,null,"Sabo 15051",39259,15051,"Sabo","Christine","Sen A","D","1. BV Kelsterbach","1. BV Kelsterbach e.V."]
["Ackermann 8001",39675,8001,"Ackermann","Brigitte","Sen B","D","ABV Frankfurt","ABV Frankfurt",null,"Sen C",null,null,null,"Sabo 15052",89132,15052,"Sabo","Ivan","Sen B","C","1. BV Kelsterbach","1. BV Kelsterbach e.V."]
["Ackermann 8002",51928,8002,"Ackermann","Jürgen","Sen A","C","BSV Dieburg","1. BSV Dieburg e.V. 1992",null,"Versehrte 1",null,null,null,"Schönhoff 15472",66857,15472,"Schönhoff","Andreas","Herren","A","1. BV Kelsterbach","1. BV Kelsterbach e.V."]
["Aquirre 8008",140088,8008,"Aquirre","Mark","Sen A","C","Citystrikers","BC Citystrikers",null,"Versehrte 2",null,null,null,"Bauer 15717",27841,15717,"Bauer","Hans Jürgen","Sen C","E","1. BV Kelsterbach","1. BV Kelsterbach e.V."]
["Albert 8013",67165,8013,"Albert","Stefan","Sen A",0,"Mainhattan Bowlers Frankfurt","Mainhattan Bowlers Frankfurt",null,"Jun",null,null,null,"Spies 33094",107131,33094,"Spies","Richard","Sen A","E","1. BV Kelsterbach","1. BV Kelsterbach e.V."]
["Ammer 8018",88780,8018,"Ammer","Frank","Sen C",null,"FTG-BC Frankfurt","FTG 1847 Frankfurt",null,null,null,null,null,"Schenke 33097",107137,33097,"Schenke","Oliver","Herren","F","1. BV Kelsterbach","1. BV Kelsterbach e.V."]
["Appel 8024",67606,8024,"Appel","Rolf","Sen B","B","BC Blau-Gelb Frankfurt","BV Blau-Gelb Frankfurt e.V.",null,null,null,null,null,"Jerke 33127",132529,33127,"Jerke","Jonathan","Jug A","C","1. BV Kelsterbach","1. BV Kelsterbach e.V."]
["Armbrüster 8026",100813,8026,"Armbrüster","Alfred","Sen B","C","BC Rebstock Ffm","BV Rebstock",null,null,null,null,null,"Frank 33170",135895,33170,"Frank","Johann-Peter","Sen C","D","1. BV Kelsterbach","1. BV Kelsterbach e.V."]
["Aufschläger 8029",670,8029,"Aufschläger","Jochen","Herren","B","ABV Frankfurt","ABV Frankfurt",null,null,null,null,null,"Korb 33175",135907,33175,"Korb","Daniel","Herren","F","1. BV Kelsterbach","1. BV Kelsterbach e.V."]
["Aufschläger 8030",135929,8030,"Aufschläger","Ulrike","Sen A","B","FSV Frankfurt","FSV Frankfurt"]
["Aust 8032",67409,8032,"Aust","Karsten","Herren","A","Finale Kassel","BSV Kassel"]
["Auth 8035",89408,8035,"Auth","Ralf","Sen A","D","BC Blau-Gelb Frankfurt","BV Blau-Gelb Frankfurt e.V."]
["Baier 8037",39866,8037,"Baier","Michael","Sen A","C","Mainhattan Bowlers Frankfurt","Mainhattan Bowlers Frankfurt"]
["Barth 8044",88627,8044,"Barth","Dietmar","Sen B","D","Mainhattan Bowlers Frankfurt","Mainhattan Bowlers Frankfurt"]
["Barth 8045",530,8045,"Barth","Jeannine","Damen","A","BV 77 Frankfurt","BV 77 Frankfurt"]
["Barth 8046",106332,8046,"Barth","Marcel","Sen A","B","BV 1987 Frankfurt","BV 1987 Frankfurt"]
["Bauer 8051",107012,8051,"Bauer","Jürgen","Sen B","A","Condor Steinheim","BV Hanau"]
["Bayer 8055",39641,8055,"Bayer","Harry","Sen B","D","BC 75 Fortuna","BV Hanau"]
["Bayer 8056",89118,8056,"Bayer","Julia","Damen",null,"Condor Steinheim","BV Hanau"]
["Bayer 8057",27046,8057,"Bayer","Peter","Sen B","C","BC 75 Fortuna","BV Hanau"]
["Bayer 8058",89119,8058,"Bayer","Thomas","Sen A","D","Condor Steinheim","BV Hanau"]
["Beckel 8064",106604,8064,"Beckel","Martina","Sen B","A","BV 77 Frankfurt","BV 77 Frankfurt"]
["Becker-Daschmann 8072",88696,8072,"Becker-Daschmann","Dagmar","Sen A","C","Cosmos Wiesbaden","BC Cosmos Wiesbaden"]
["Belgar 8079",144478,8079,"Belgar","Renato","Sen B","D","BV Pinoy Frankfurt","BV Pinoy Frankfurt e.V."]
["Bernhardt 8090",529,8090,"Bernhardt","Klaus","Sen A","C","BC 2000 Aschaffenburg","1. BV Aschaffenburg e.V."]
["Bien 8093",100533,8093,"Bien","Martin","Sen B","E","BV Oranje Frankfurt","BV Oranje Frankfurt"]
["Bienert 8095",671,8095,"Bienert","Petra","Sen B","E","BC Blau-Gelb Frankfurt","BV Blau-Gelb Frankfurt e.V."]
["Biersack 8097",39534,8097,"Biersack","Karl","Sen B",null,"BC Rebstock Ffm","BV Rebstock"]
["Bigall 8100",39663,8100,"Bigall","Marcel","Herren","C","BSV Oberrad","BSV 1990 Oberrad"]
["Bigall 8102",39662,8102,"Bigall","Volker","Sen A","C","BSV Oberrad","BSV 1990 Oberrad"]
["Bileci 8103",100749,8103,"Bileci","Nunzio","Sen A",0,"BC Mühlheim","BV Mühlheim"]
["Schmidt 8110",27438,8110,"Schmidt","Julia","Damen",null,"FSV Frankfurt","FSV Frankfurt"]
["Blickhan 8111",27575,8111,"Blickhan","Richard","Sen B","C","BV Frankfurt Süd","BV Frankfurt Süd"]
["Böhne 8124",27276,8124,"Böhne","Thomas","Sen A","D","BC Rebstock Ffm","BV Rebstock"]
["Bohrmann 8125",106355,8125,"Bohrmann","Berthold","Sen B","D","BC Wiesbaden","BC Wiesbaden e.V."]
["Bohrmann 8126",106356,8126,"Bohrmann","Tim","Herren","B","BC Wiesbaden","BC Wiesbaden e.V."]
["Brandes 8138",40042,8138,"Brandes","Gabriele","Sen A","C","1. BV Kelsterbach","1. BV Kelsterbach e.V."]
["Braun 8140",67519,8140,"Braun","Hartmut","Sen B","D","BC Gießen","1. BSV Gießen"]
["Bretthauer 8147",135896,8147,"Bretthauer","Ralf","Sen A","C","Condor Steinheim","BV Hanau"]
["Brookes-Kiefer 8153",27842,8153,"Brookes-Kiefer","Elaine","Sen B","D","BC Eberstadt","1. BSV Eberstadt"]
["Brückner 8156",100737,8156,"Brückner","Achim","Sen A","D","BC 75 Fortuna","BV Hanau"]
["Buhl 8166",89122,8166,"Buhl","Georg","Sen C","D","Condor Steinheim","BV Hanau"]
["Buhl 8167",89121,8167,"Buhl","Martin","Herren","B","Condor Steinheim","BV Hanau"]
["Burger 8168",100814,8168,"Burger","Kurt","Sen A",null,"BC Rebstock Ffm","BV Rebstock"]
["Buskowiak 8173",67019,8173,"Buskowiak","Thomas","Sen B","D","SW Friedberg","Schwarz Weiss Friedberg"]
["Büttner 8175",106652,8175,"Büttner","Stefan","Sen A",null,"BC Nord West Ffm","BSV Nord West Frankfurt"]
["Cabrera Tudela 8176",106539,8176,"Cabrera Tudela","Antonio","Sen C","D","BC 83 Kelsterbach","KBV Kelsterbach"]
["Caldwell 8179",100471,8179,"Caldwell","Thomas","Sen A","D","1. BV Kelsterbach","1. BV Kelsterbach e.V."]
["Callsen 8181",27115,8181,"Callsen","Thomas","Sen A","C","Citystrikers","BC Citystrikers"]
["Canady 8183",107078,8183,"Canady","David","Herren","A","Finale Kassel","BSV Kassel"]
["Castro 8188",12754,8188,"Castro","Ferdinand","Herren","A","BV Pinoy Frankfurt","BV Pinoy Frankfurt e.V."]
["Chalkidis 8190",549,8190,"Chalkidis","Anastasios","Sen A","B","BC 83 Kelsterbach","KBV Kelsterbach"]
["Collmann 8196",51890,8196,"Collmann","Dieter","Sen B","C","Finale Kassel","BSV Kassel"]
["Curti 8204",27602,8204,"Curti","Michael","Herren","A","ABV Frankfurt","ABV Frankfurt"]
["Custodio-Simon 8205",106272,8205,"Custodio-Simon","Elena","Sen C","D","ABV Frankfurt","ABV Frankfurt"]
["Dähler 8208",39673,8208,"Dähler","Mark","Sen A","C","ABV Frankfurt","ABV Frankfurt"]
["Daschmann 8209",88698,8209,"Daschmann","Helmut","Sen B","C","BC Gießen","1. BSV Gießen"]
[{"$f":"D67&\" \"&C67","v":"Dengs 8220"},106334,8220,"Dengs","Heinz","Sen B",null,"BV 1987 Frankfurt","BV 1987 Frankfurt"]
["Desiderio 8225",27698,8225,"Desiderio","Giovanni","Sen A","A","BC 83 Kelsterbach","KBV Kelsterbach"]
["Devine 8228",106667,8228,"Devine","David","Sen B","D","BC Langen 83","BSV Langen 83"]
["Dietrich 8243",106661,8243,"Dietrich","Dieter","Sen B","C","BC Langen 83","BSV Langen 83"]
["Dietrich 8244",140109,8244,"Dietrich","Timo","Herren","B","BC Langen 83","BSV Langen 83"]
["Dietz 8245",52031,8245,"Dietz","Christian","Herren","B","Phönix Frankfurt","BV 95 Phönix Frankfurt e.V."]
["Wolf 8255",106937,8255,"Wolf","Christine","Sen A",0,"BC Devils","BV Oberstedtener Devils e.V."]
["Dorfmeister 8258",null,8258,"Dorfmeister","Daniel","Herren","B","BC Gießen","1. BSV Gießen"]
["Druschel 8261",51961,8261,"Druschel","Siegfried","Sen B","E","BC 67 Hanau","BV Hanau"]
["Duplois-Laun 8264",66849,8264,"Duplois-Laun","Petra","Sen B","B","1. BV Kelsterbach","1. BV Kelsterbach e.V."]
["Elsenberger 8270",51830,8270,"Elsenberger","Horst","Sen B","B","BC Wiesbaden","BC Wiesbaden e.V."]
["Emmerich 8272",39636,8272,"Emmerich","Wolfgang","Sen C","B","ABV Frankfurt","ABV Frankfurt"]
["Engisch 8276",106540,8276,"Engisch","Erhard","Sen C","D","BC 83 Kelsterbach","KBV Kelsterbach"]
["Eylardi 8279",88781,8279,"Eylardi","Michaela","Sen B","C","FTG-BC Frankfurt","FTG 1847 Frankfurt"]
["Färber 8283",100739,8283,"Färber","Klaus","Sen C","C","BC 75 Fortuna","BV Hanau"]
["Fehl 8290",143030,8290,"Fehl","Manuel","Herren",null,"Blau-Gelb Fulda Strikers","PSV BG Fulda 1934/61 e.V."]
["Fernandez 8297",67191,8297,"Fernandez","Andres","Sen C","B","BC 67 Hanau","BV Hanau"]
["Firmbach 8307",677,8307,"Firmbach","Volker","Sen C","D","BC Blau-Gelb Frankfurt","BV Blau-Gelb Frankfurt e.V."]
["Fischer 8315",100460,8315,"Fischer","Peter","Sen A","D","BC Langen 83","BSV Langen 83"]
["Fischer 8318",160,8318,"Fischer","Rainer","Sen A","A","BC Darmstadt","1. BSV Darmstadt 1973"]
["Flaig 8322",100489,8322,"Flaig","Achim","Sen A",null,"BC Darmstadt","1. BSV Darmstadt 1973"]
["Flassig 8323",66979,8323,"Flassig","Roland","Sen A","B","BC Höchst","BV Höchst e.V."]
["Flemming 8324",100711,8324,"Flemming","Claus-Dieter","Sen C",null,"BC Rebstock Ffm","BV Rebstock"]
["Freund 8345",147239,8345,"Freund","Matthias","Sen A",0,"TSV 1860 Hanau","BV Hanau"]
["Friedrich 8348",40058,8348,"Friedrich","Heike","Damen","D","Condor Steinheim","BV Hanau"]
["Friedrich 8349",51622,8349,"Friedrich","Michael","Sen B","D","Condor Steinheim","BV Hanau"]
["Frobenius 8356",67270,8356,"Frobenius","Sven","Herren","C","BC 2000 Aschaffenburg","1. BV Aschaffenburg e.V."]
["Fuertes 8359",106606,8359,"Fuertes","Alfonso","Sen C",0,"BV 77 Frankfurt","BV 77 Frankfurt"]
["Fuertes 8360",67493,8360,"Fuertes","Daniel","Herren","A","BV 77 Frankfurt","BV 77 Frankfurt"]
["Gangi-Chiodo 8366",100534,8366,"Gangi-Chiodo","Francesco","Sen A","D","BV Oranje Frankfurt","BV Oranje Frankfurt"]
["Gebhardt 8371",624,8371,"Gebhardt","Carsten","Herren","C","BV 1987 Frankfurt","BV 1987 Frankfurt"]
["Geck 8374",106274,8374,"Geck","Rainer","Sen A","D","BC Gießen","1. BSV Gießen"]
["Geretshauser 8388",67607,8388,"Geretshauser","Kurt","Sen B","C","BC Blau-Gelb Frankfurt","BV Blau-Gelb Frankfurt e.V."]
["Ginting 8393",147207,8393,"Ginting","Bangun","Sen A",0,"BC 83 Kelsterbach","KBV Kelsterbach"]
["Göb 8398",89117,8398,"Göb","Patrick","Herren","B","Condor Steinheim","BV Hanau"]
["Filor 8399",39338,8399,"Filor","Alexandra","Damen","A","BV 77 Frankfurt","BV 77 Frankfurt"]
["Göbel - Janka 8403",39339,8403,"Göbel - Janka","Michaela","Damen","A","BV 77 Frankfurt","BV 77 Frankfurt"]
["Gonschorek 8407",144500,8407,"Gonschorek","Bernd","Sen A",null,"Blau-Gelb Fulda Strikers","PSV BG Fulda 1934/61 e.V."]
["Güldner 8435",100432,8435,"Güldner","Sascha","Herren","A","BC Gießen","1. BSV Gießen"]
["Hack 8441",89407,8441,"Hack","Dietmar","Sen C","C","Mainhattan Bowlers Frankfurt","Mainhattan Bowlers Frankfurt"]
["Hahn 8451",67441,8451,"Hahn","Dietmar","Sen B",0,"SW Friedberg","Schwarz Weiss Friedberg"]
["Bristot 8463",140106,8463,"Bristot","Andrea","Damen","A","BV 77 Frankfurt","BV 77 Frankfurt"]
["Heck-Seipel 8471",100029,8471,"Heck-Seipel","Lydia","Sen B","C","TSV 1860 Hanau","BV Hanau"]
["Heeg 8473",52015,8473,"Heeg","Renate","Sen A","B","BC 2000 Aschaffenburg","1. BV Aschaffenburg e.V."]
["Heeg 8474",89163,8474,"Heeg","Sonja","Damen","A","BC 2000 Aschaffenburg","1. BV Aschaffenburg e.V."]
["Heilmann 8480",89091,8480,"Heilmann","Harry","Sen B","D","TSV 1860 Hanau","BV Hanau"]
["Heilmann 8481",89092,8481,"Heilmann","Inge","Sen A","D","TSV 1860 Hanau","BV Hanau"]
["Heindl 8484",39282,8484,"Heindl","Manfred","Sen C","E","BC Langen 83","BSV Langen 83"]
["Heine 8485",100371,8485,"Heine","Frank","Herren","A","Finale Kassel","BSV Kassel"]
["Heine 8487",106595,8487,"Heine","Klaudija","Sen A","C","FTG-BC Frankfurt","FTG 1847 Frankfurt"]
["Heinrich 8488",39776,8488,"Heinrich","Thorsten","Sen A","D","FTG-BC Frankfurt","FTG 1847 Frankfurt"]
["Held 8490",106542,8490,"Held","Ernst","Sen C","E","BC 83 Kelsterbach","KBV Kelsterbach"]
["Heldner 8493",89108,8493,"Heldner","Bruno","Sen B","D","BC 67 Hanau","BV Hanau"]
["Helfrich 8494",51454,8494,"Helfrich","Regina","Sen A","B","FTG-BC Frankfurt","FTG 1847 Frankfurt"]
["Heller 8499",51952,8499,"Heller","Roswitha","Sen C",null,"Finale Kassel","BSV Kassel"]
["Henrich 8510",142979,8510,"Henrich","Florian","Herren","B","BC Gießen","1. BSV Gießen"]
["Henrich 8511",51303,8511,"Henrich","Heinz","Sen B",null,"BC Gießen","1. BSV Gießen"]
["Henrich 8514",67314,8514,"Henrich","Sven","Herren","A","ABV Frankfurt","ABV Frankfurt"]
["Herre 8521",39676,8521,"Herre","Manuela","Sen B","D","ABV Frankfurt","ABV Frankfurt"]
["Hess 8529",null,8529,"Hess","Tobias","Herren","A","ABV Frankfurt","ABV Frankfurt"]
["Hilger 8539",106544,8539,"Hilger","Detlef","Sen A",0,"BC 83 Kelsterbach","KBV Kelsterbach"]
["Hlavinka 8546",100129,8546,"Hlavinka","Pascal","Herren","D","Mainhattan Bowlers Frankfurt","Mainhattan Bowlers Frankfurt"]
["Hospe 8568",88631,8568,"Hospe","Thilo","Sen A","B","FSV Frankfurt","FSV Frankfurt"]
["Hoyle 8569",null,8569,"Hoyle","Keith","Sen B","C","Mainhattan Bowlers Frankfurt","Mainhattan Bowlers Frankfurt"]
[{"$f":"D131&\" \"&C131","v":"Hübner 8570"},89170,8570,"Hübner","Rolf","Sen B","C","Finale Kassel","BSV Kassel"]
["Hüllenhütter 8571",106556,8571,"Hüllenhütter","Wolfgang","Sen B","C","BC Blau-Gelb Frankfurt","BV Blau-Gelb Frankfurt e.V."]
["Inglese 8583",689,8583,"Inglese","Sandro","Herren","B","BC 2000 Aschaffenburg","1. BV Aschaffenburg e.V."]
["Jackwerth 8584",675,8584,"Jackwerth","Klaus","Sen B","D","BC Blau-Gelb Frankfurt","BV Blau-Gelb Frankfurt e.V."]
["Janicki 8591",146130,8591,"Janicki","Silke","Sen A",0,"BC Höchst","BV Höchst e.V."]
["Jokisch 8606",27047,8606,"Jokisch","Matthias","Sen A","B","TSV 1860 Hanau","BV Hanau"]
["Jost 8608",51609,8608,"Jost","Manfred","Sen A","A","ABV Frankfurt","ABV Frankfurt"]
["Kaiser 8618",88701,8618,"Kaiser","Michael","Sen A","C","Mainhattan Bowlers Frankfurt","Mainhattan Bowlers Frankfurt"]
["Kallup 8619",100433,8619,"Kallup","Werner","Sen C","D","Finale Kassel","BSV Kassel"]
["Kiefer 8639",27694,8639,"Kiefer","Michael","Sen B","C","BC Eberstadt","1. BSV Eberstadt"]
["Kleppig 8661",89123,8661,"Kleppig","Constanze","Sen A",null,"Condor Steinheim","BV Hanau"]
["Klier 8662",89094,8662,"Klier","Reinhard","Sen B","C","TSV 1860 Hanau","BV Hanau"]
["Knischewski 8663",676,8663,"Knischewski","Petra","Sen B","C","BC Blau-Gelb Frankfurt","BV Blau-Gelb Frankfurt e.V."]
["Koch 8671",39371,8671,"Koch","Robert","Sen A","C","ABV Frankfurt","ABV Frankfurt"]
["Köhler 8674",67602,8674,"Köhler","Andreas","Sen A","D","BC Höchst","BV Höchst e.V."]
["Kompauer 8681",27759,8681,"Kompauer","Sven","Herren","B","Phönix Frankfurt","BV 95 Phönix Frankfurt e.V."]
["König 8682",678,8682,"König","Uta","Sen A","A","BC Blau-Gelb Frankfurt","BV Blau-Gelb Frankfurt e.V."]
["Könner 8683",51831,8683,"Könner","Horst","Sen A","C","BC Wiesbaden","BC Wiesbaden e.V."]
["Konway 8684",89110,8684,"Konway","Karl","Sen A",null,"BC 67 Hanau","BV Hanau"]
["Geck 8689",997,8689,"Geck","Petra","Sen A","E","BC Gießen","1. BSV Gießen"]
["Kostial 8690",100535,8690,"Kostial","Hans-Joachim","Sen B","E","BV Oranje Frankfurt","BV Oranje Frankfurt"]
["Kraft 8694",89151,8694,"Kraft","Edgar","Sen B",null,"BC Eberstadt","1. BSV Eberstadt"]
["Kraus 8697",89095,8697,"Kraus","Monika","Sen B","D","TSV 1860 Hanau","BV Hanau"]
["Kumpf 8712",100816,8712,"Kumpf","Jürgen","Sen B","B","BC Rebstock Ffm","BV Rebstock"]
["Lambracht 8717",891,8717,"Lambracht","Waltraud","Sen A","E","BC Devils","BV Oberstedtener Devils e.V."]
["Lang 8719",890,8719,"Lang","Christel","Sen A",0,"BC Devils","BV Oberstedtener Devils e.V."]
["Lassiter 8728",51486,8728,"Lassiter","Wayne","Sen A","E","Mainhattan Bowlers Frankfurt","Mainhattan Bowlers Frankfurt"]
["Laun 8735",109,8735,"Laun","Werner","Sen B","B","1. BV Kelsterbach","1. BV Kelsterbach e.V."]
["Long 8753",1035,8753,"Long","Diana","Sen A","B","Cosmos Wiesbaden","BC Cosmos Wiesbaden"]
["Lopez Rodrigues 8755",106545,8755,"Lopez Rodrigues","Raul","Sen B","C","BC 83 Kelsterbach","KBV Kelsterbach"]
["Lucke 8759",39664,8759,"Lucke","Joachim","Sen C","C","ABV Frankfurt","ABV Frankfurt"]
["Lucke 8760",39679,8760,"Lucke","Marc","Sen A","A","ABV Frankfurt","ABV Frankfurt"]
["Lunkenheimer 8763",144527,8763,"Lunkenheimer","Daiana","Sen A","D","BSV Dieburg","1. BSV Dieburg e.V. 1992"]
["Mader 8769",106335,8769,"Mader","Gabi","Sen A","D","BV 1987 Frankfurt","BV 1987 Frankfurt"]
["Mader 8771",543,8771,"Mader","Sven","Herren","B","BC Blau-Gelb Frankfurt","BV Blau-Gelb Frankfurt e.V."]
["Mank 8778",88694,8778,"Mank","Siegfried","Sen B","D","BC 83 Kelsterbach","KBV Kelsterbach"]
["Weitzel 8785",40131,8785,"Weitzel","Cornelia","Damen","B","BC Blau-Gelb Frankfurt","BV Blau-Gelb Frankfurt e.V."]
["Mautz 8790",88703,8790,"Mautz","Robert","Sen B","B","TSV 1860 Hanau","BV Hanau"]
["Meissner 8796",39677,8796,"Meissner","Alexandra","Damen","D","Cosmos Wiesbaden","BC Cosmos Wiesbaden"]
["Meurer 8804",67445,8804,"Meurer","Marius","Jun","B","ABV Frankfurt","ABV Frankfurt"]
["Meurer 8805",40096,8805,"Meurer","Sylvia","Sen A","B","FTG-BC Frankfurt","FTG 1847 Frankfurt"]
["Micianova 8814",144463,8814,"Micianova","Jana","Damen","E","Mainhattan Bowlers Frankfurt","Mainhattan Bowlers Frankfurt"]
["Modenbach 8825",67609,8825,"Modenbach","Christian","Sen B","B","BV 77 Frankfurt","BV 77 Frankfurt"]
["Möller 8832",40085,8832,"Möller","Beate","Sen B","E","BC Devils","BV Oberstedtener Devils e.V."]
["Morbe 8836",89099,8836,"Morbe","Manfred","Sen C","E","TSV 1860 Hanau","BV Hanau"]
["Morbe-Koch 8837",144526,8837,"Morbe-Koch","Sandra","Damen","D","TSV 1860 Hanau","BV Hanau"]
["Morbe 8838",89100,8838,"Morbe","Sieglinde","Sen B","D","TSV 1860 Hanau","BV Hanau"]
["Morche 8839",67740,8839,"Morche","Jochen","Sen B","D","BV Frankfurt Süd","BV Frankfurt Süd"]
["Müller 8845",51480,8845,"Müller","Claudia","Sen A","D","Cosmos Wiesbaden","BC Cosmos Wiesbaden"]
["Müller 8849",89111,8849,"Müller","Edgar","Sen B","C","BC 67 Hanau","BV Hanau"]
["Müller 8853",51701,8853,"Müller","Jochen","Sen A","B","Cosmos Wiesbaden","BC Cosmos Wiesbaden"]
["Müller 8860",51494,8860,"Müller","Susi","Sen A",null,"BC Blau-Gelb Frankfurt","BV Blau-Gelb Frankfurt e.V."]
["Müller 8861",135851,8861,"Müller","Thomas","Sen A","D","BC Höchst","BV Höchst e.V."]
["Muth 8867",681,8867,"Muth","Michael","Sen A","D","BC Blau-Gelb Frankfurt","BV Blau-Gelb Frankfurt e.V."]
["Naujoks 8870",39667,8870,"Naujoks","Angela","Sen A","C","BC Blau-Gelb Frankfurt","BV Blau-Gelb Frankfurt e.V."]
["Naujoks 8871",27761,8871,"Naujoks","Christoph","Herren","B","BC 75 Fortuna","BV Hanau"]
["Naujoks 8872",27762,8872,"Naujoks","Jürgen","Sen A","C","BC 75 Fortuna","BV Hanau"]
["Naumann 8873",682,8873,"Naumann","Edith","Sen B","E","BC Blau-Gelb Frankfurt","BV Blau-Gelb Frankfurt e.V."]
["Naumann 8874",683,8874,"Naumann","Hans-Jürgen","Sen B","A","BC Blau-Gelb Frankfurt","BV Blau-Gelb Frankfurt e.V."]
["Neiczer 8875",27807,8875,"Neiczer","Ladislaus","Sen B","D","BC Langen 83","BSV Langen 83"]
["Neumann 8885",40028,8885,"Neumann","Heike","Sen A",null,"BC 75 Fortuna","BV Hanau"]
["Nickusch 8889",89101,8889,"Nickusch","Michael","Sen B","E","TSV 1860 Hanau","BV Hanau"]
["Nolte 8895",66854,8895,"Nolte","Joachim","Sen A","B","1. BV Kelsterbach","1. BV Kelsterbach e.V."]
["Norz 8896",684,8896,"Norz","Norbert","Sen B","E","BC Blau-Gelb Frankfurt","BV Blau-Gelb Frankfurt e.V."]
[{"$f":"D195&\" \"&C195","v":"Noss 8897"},132530,8897,"Noss","Andreas","Sen A","C","BC Rebstock Ffm","BV Rebstock"]
["Obst 8900",106651,8900,"Obst","Mike","Sen A","C","BC Nord West Ffm","BSV Nord West Frankfurt"]
["Obst 8901",106650,8901,"Obst","Roland","Sen B","D","BC Nord West Ffm","BSV Nord West Frankfurt"]
["Olbrich 8904",106653,8904,"Olbrich","Manfred","Sen A","C","BC Nord West Ffm","BSV Nord West Frankfurt"]
["Opper 8910",67520,8910,"Opper","Andreas","Sen A","B","BC Gießen","1. BSV Gießen"]
["Dietz 8922",27467,8922,"Dietz","Benjamin","Herren","A","ABV Frankfurt","ABV Frankfurt"]
["Paparaphiou 8924",88633,8924,"Paparaphiou","Jessica","Damen","C","FSV Frankfurt","FSV Frankfurt"]
["Pauli 8927",109627,8927,"Pauli","Sven","Herren","A","Condor Steinheim","BV Hanau"]
["Pelz 8931",27452,8931,"Pelz","Marianne","Sen B","B","1. BV Kelsterbach","1. BV Kelsterbach e.V."]
["Pest 8938",100673,8938,"Pest","Hagen","Sen A","A","BC Gießen","1. BSV Gießen"]
["Pilo 8949",532,8949,"Pilo","Salvatore","Sen B","D","Mainhattan Bowlers Frankfurt","Mainhattan Bowlers Frankfurt"]
["Pöhner 8954",106576,8954,"Pöhner","Cornelia","Damen","D","BC 2000 Aschaffenburg","1. BV Aschaffenburg e.V."]
["Poller 8955",106607,8955,"Poller","Armin","Sen A","B","BV 77 Frankfurt","BV 77 Frankfurt"]
["Popiol 8956",106852,8956,"Popiol","Bernd","Sen C","F","BSV Dieburg","1. BSV Dieburg e.V. 1992"]
["Popiol 8957",51949,8957,"Popiol","Christina","Damen","C","BSV Dieburg","1. BSV Dieburg e.V. 1992"]
["Regenfuss 8990",461,8990,"Regenfuss","Norbert","Sen C","D","BV Frankfurt Süd","BV Frankfurt Süd"]
["Hüllenhütter 10022",27093,10022,"Hüllenhütter","Claudia","Sen B","C","Cosmos Wiesbaden","BC Cosmos Wiesbaden"]
["Dreher 10026",89116,10026,"Dreher","Stefan","Sen B",0,"Condor Steinheim","BV Hanau"]
["Baro 10029",104782,10029,"Baro","Dirk","Sen A","D","TSV 1860 Hanau","BV Hanau"]
["Becker 10052",99877,10052,"Becker","Jens","Herren","D","Citystrikers","BC Citystrikers"]
["Aljakrinskij 10065",107111,10065,"Aljakrinskij","Alexander","Sen B","D","BC 83 Kelsterbach","KBV Kelsterbach"]
["Vorwerg 10067",null,10067,"Vorwerg","Michael","Sen A",0,"BC 67 Hanau","BV Hanau"]
["Winter 10068",106984,10068,"Winter","Asko","Sen A",0,"BV 1987 Frankfurt","BV 1987 Frankfurt"]
["Knobloch 10069",27702,10069,"Knobloch","Joerg","Herren","C","BC 83 Kelsterbach","KBV Kelsterbach"]
["Schlier 10112",147243,10112,"Schlier","Uwe","Sen B",0,"SW Friedberg","Schwarz Weiss Friedberg"]
["Saechtig 10167",142976,10167,"Saechtig","Frederic","Herren","D","BC Blau-Gelb Frankfurt","BV Blau-Gelb Frankfurt e.V."]
["Scheibe 10178",107001,10178,"Scheibe","Thomas","Sen A","B","BC Blau-Gelb Frankfurt","BV Blau-Gelb Frankfurt e.V."]
["Morbe 10181",142955,10181,"Morbe","Wolfgang","Sen B","C","TSV 1860 Hanau","BV Hanau"]
["Siebel 10239",149197,10239,"Siebel","Heidi","Sen B",0,"TSV 1860 Hanau","BV Hanau"]
["Herbig 10243",100343,10243,"Herbig","Frank","Sen A","A","Mainhattan Bowlers Frankfurt","Mainhattan Bowlers Frankfurt"]
["Klüh 10261",132408,10261,"Klüh","Heidi","Sen A","D","Condor Steinheim","BV Hanau"]
["Kornett 10277",144523,10277,"Kornett","Kerstin","Sen A","D","Condor Steinheim","BV Hanau"]
["Seyfarth 10300",106738,10300,"Seyfarth","Robert","Herren","D","BC Eberstadt","1. BSV Eberstadt"]
["Schmidt 10331",146189,10331,"Schmidt","Markus","Herren","E","BC Eberstadt","1. BSV Eberstadt"]
["Siemonsen-Caldwell 10366",106953,10366,"Siemonsen-Caldwell","Melanie","Damen","D","1. BV Kelsterbach","1. BV Kelsterbach e.V."]
["Gruchot 10369",107041,10369,"Gruchot","Dennis","Herren","C","BC 75 Fortuna","BV Hanau"]
["Syla 10409",135978,10409,"Syla","Tania","Damen","E","BC 75 Fortuna","BV Hanau"]
["Hess 10416",147242,10416,"Hess","Hubert","Sen A",0,"SW Friedberg","Schwarz Weiss Friedberg"]
["Fischer 10419",144494,10419,"Fischer","Hendrik","Herren","B","BC Wiesbaden","BC Wiesbaden e.V."]
["Krüger 10439",132498,10439,"Krüger","Wilhelm","Herren","C","BV 77 Frankfurt","BV 77 Frankfurt"]
["Extra 10440",132473,10440,"Extra","Dan Oliver","Herren","D","BV Pinoy Frankfurt","BV Pinoy Frankfurt e.V."]
["Tesoro 10451",135818,10451,"Tesoro","Dan Wilfried","Herren","E","BV Pinoy Frankfurt","BV Pinoy Frankfurt e.V."]
["Naluz 10464",132493,10464,"Naluz","Allen","Herren","B","BV Pinoy Frankfurt","BV Pinoy Frankfurt e.V."]
["Avila 10469",135817,10469,"Avila","Gebbie","Herren","D","BV Pinoy Frankfurt","BV Pinoy Frankfurt e.V."]
["Riedel 10491",null,10491,"Riedel","Angelika","Sen C","E","Mainhattan Bowlers Frankfurt","Mainhattan Bowlers Frankfurt"]
["Kaplan 10496",null,10496,"Kaplan","Emin","Herren",0,"Queer-Striker","Frankfurter Volleyball Verein e.V."]
["Castaneto 10508",143005,10508,"Castaneto","Kurt","Herren","B","BV Pinoy Frankfurt","BV Pinoy Frankfurt e.V."]
["Hohmann 10518",132599,10518,"Hohmann","Alexander","Herren","D","Queer-Striker","Frankfurter Volleyball Verein e.V."]
["Braun 10560",146198,10560,"Braun","Cornelia","Damen",0,"TSV 1860 Hanau","BV Hanau"]
["Lopez y Zuvita 10604",140142,10604,"Lopez y Zuvita","David","Herren","D","BC 83 Kelsterbach","KBV Kelsterbach"]
["Deutsch 10653",144519,10653,"Deutsch","Jennifer","Damen","D","Bowlingsportclub Bensheim 08 e.V","Bowlingsportclub Bensheim 08 e.V"]
["Umbach 10667",147351,10667,"Umbach","Armin","Sen B",0,"BV 77 Frankfurt","BV 77 Frankfurt"]
["Baumann 12869",45453,12869,"Baumann","Norbert","Sen C","B","BC Blau-Gelb Frankfurt","BV Blau-Gelb Frankfurt e.V."]
["Baumann 12996",33415,12996,"Baumann","Gabriele","Sen A","B","BC Blau-Gelb Frankfurt","BV Blau-Gelb Frankfurt e.V."]
["Gladigau 13056",52081,13056,"Gladigau","Philipp","Herren","A","BC Blau-Gelb Frankfurt","BV Blau-Gelb Frankfurt e.V."]
["Opfer 14076",null,14076,"Opfer","Manfred","Herren",null,"Mainhattan Bowlers Frankfurt","Mainhattan Bowlers Frankfurt"]
["Czermak 14079",59135,14079,"Czermak","Wolfgang","Sen A","C","Bowlingsportclub Bensheim 08 e.V","Bowlingsportclub Bensheim 08 e.V"]
["Winter 14091",26188,14091,"Winter","Florian","Herren","A","Phönix Frankfurt","BV 95 Phönix Frankfurt e.V."]
["Herweck 14149",146183,14149,"Herweck","Michael","Herren",0,"Bowlingsportclub Bensheim 08 e.V","Bowlingsportclub Bensheim 08 e.V"]
["Ray Love II 14165",105121,14165,"Ray Love II","Gloster","Herren","A","Phönix Frankfurt","BV 95 Phönix Frankfurt e.V."]
["Rempel 14189",26399,14189,"Rempel","Kai","Herren","A","BC Gießen","1. BSV Gießen"]
["Meß 14604",null,14604,"Meß","Manfred","Sen B","A","Mainhattan Bowlers Frankfurt","Mainhattan Bowlers Frankfurt"]
["Geißler 14633",26106,14633,"Geißler","Nadine","Damen","A","FTG-BC Frankfurt","FTG 1847 Frankfurt"]
["Reitze 15005",698,15005,"Reitze","Klaus","Sen A","B","BC Blau-Gelb Frankfurt","BV Blau-Gelb Frankfurt e.V."]
[{"$f":"D259&\" \"&C259","v":"Reuss 15011"},67267,15011,"Reuss","Dominic","Herren","B","BC 2000 Aschaffenburg","1. BV Aschaffenburg e.V."]
["Reuter 15012",67610,15012,"Reuter","Agnes","Sen B","C","Mainhattan Bowlers Frankfurt","Mainhattan Bowlers Frankfurt"]
["Rogat 15027",106555,15027,"Rogat","Curd","Sen B","C","Cosmos Wiesbaden","BC Cosmos Wiesbaden"]
["Rossel 15037",106546,15037,"Rossel","Reiner","Sen C","D","BC 83 Kelsterbach","KBV Kelsterbach"]
["Rothenhäuser 15038",100751,15038,"Rothenhäuser","Bernd","Sen A","D","BC Mühlheim","BV Mühlheim"]
["Rothenhäuser 15039",100752,15039,"Rothenhäuser","Werner","Sen A","E","BC Mühlheim","BV Mühlheim"]
["Roy 15040",699,15040,"Roy","Christopher","Herren",null,"BC Blau-Gelb Frankfurt","BV Blau-Gelb Frankfurt e.V."]
["Rückert 15041",100839,15041,"Rückert","Markus","Sen A","D","BSV Dieburg","1. BSV Dieburg e.V. 1992"]
["Rühl 15043",66851,15043,"Rühl","Marion","Sen B","D","1. BV Kelsterbach","1. BV Kelsterbach e.V."]
["Ruhlmann 15045",100840,15045,"Ruhlmann","Thomas","Sen A","D","BSV Dieburg","1. BSV Dieburg e.V. 1992"]
["Sabo 15051",39259,15051,"Sabo","Christine","Sen A","D","1. BV Kelsterbach","1. BV Kelsterbach e.V."]
["Sabo 15052",89132,15052,"Sabo","Ivan","Sen B","C","1. BV Kelsterbach","1. BV Kelsterbach e.V."]
["Schäfer 15064",51533,15064,"Schäfer","Jürgen","Sen B","D","BC Langen 83","BSV Langen 83"]
["Schäfer 15065",51533,15065,"Schäfer","Jürgen","Sen A","C","Mainhattan Bowlers Frankfurt","Mainhattan Bowlers Frankfurt"]
["Scharnowski 15070",67741,15070,"Scharnowski","Waldemar","Herren","C","BV Frankfurt Süd","BV Frankfurt Süd"]
["Schendel 15074",100740,15074,"Schendel","Jörg","Sen A","B","BC 75 Fortuna","BV Hanau"]
["Scheuermann 15081",27910,15081,"Scheuermann","Ludwig","Sen A","C","BSV Oberrad","BSV 1990 Oberrad"]
["Scheuermann 15083",27909,15083,"Scheuermann","Sybille","Sen A","D","TSV 1860 Hanau","BV Hanau"]
["Schiller 15087",88705,15087,"Schiller","Joachim","Sen A","B","BC 2000 Aschaffenburg","1. BV Aschaffenburg e.V."]
["Schinkario 15094",106337,15094,"Schinkario","Nicole","Damen",0,"BV 1987 Frankfurt","BV 1987 Frankfurt"]
["Schlappa 15097",89127,15097,"Schlappa","Norbert","Sen B","D","Condor Steinheim","BV Hanau"]
["Schley 15099",100462,15099,"Schley","Gisela","Sen B",0,"BC Langen 83","BSV Langen 83"]
["Schley 15100",51534,15100,"Schley","Hans-Joachim","Sen B","D","BC Langen 83","BSV Langen 83"]
["Schmelz 15104",100493,15104,"Schmelz","Peter","Sen B",null,"BC Darmstadt","1. BSV Darmstadt 1973"]
["Schmidt 15108",100492,15108,"Schmidt","Klaus","Sen B","D","BC Darmstadt","1. BSV Darmstadt 1973"]
["Schmidt 15112",700,15112,"Schmidt","Petra","Sen A","C","BC Blau-Gelb Frankfurt","BV Blau-Gelb Frankfurt e.V."]
["Schmitt 15120",106550,15120,"Schmitt","Hans-Werner","Sen B",null,"BC 83 Kelsterbach","KBV Kelsterbach"]
["Schmidt 15123",67193,15123,"Schmidt","Thomas","Herren","B","Condor Steinheim","BV Hanau"]
["Schmitt 15124",135989,15124,"Schmitt","Wolfgang","Sen A","C","Blau-Gelb Fulda Strikers","PSV BG Fulda 1934/61 e.V."]
["Schnee 15126",106587,15126,"Schnee","Florian","Herren","A","TSV 1860 Hanau","BV Hanau"]
["Malow 15127",39914,15127,"Malow","Christine","Damen","B","FSV Frankfurt","FSV Frankfurt"]
["Schneider 15133",67518,15133,"Schneider","Volker","Sen A","E","BC Gießen","1. BSV Gießen"]
["Scholdra 15136",106834,15136,"Scholdra","Peter","Sen A","D","Citystrikers","BC Citystrikers"]
["Scholz 15138",39666,15138,"Scholz","Erhard","Sen B",0,"BSV Oberrad","BSV 1990 Oberrad"]
["Schomaker 15140",906,15140,"Schomaker","Ralf-Thomas","Sen A","E","BC Devils","BV Oberstedtener Devils e.V."]
["Schubert 15151",106988,15151,"Schubert","Mike","Herren","D","BV 1987 Frankfurt","BV 1987 Frankfurt"]
["Gutzwiller 15158",88634,15158,"Gutzwiller","Nicole","Damen","B","FSV Frankfurt","FSV Frankfurt"]
["Schulz 15160",88812,15160,"Schulz","Herbert","Sen B",null,"BC Höchst","BV Höchst e.V."]
["Schulz 15163",67604,15163,"Schulz","Wolfhard","Sen B","E","BC Höchst","BV Höchst e.V."]
["Schwarz 15170",39917,15170,"Schwarz","Wolfgang","Sen B","D","BC Höchst","BV Höchst e.V."]
["Schwermer 15173",168,15173,"Schwermer","Thomas","Sen A","D","BC Eberstadt","1. BSV Eberstadt"]
["Seipel 15184",100463,15184,"Seipel","Walter","Sen B","D","BC Langen 83","BSV Langen 83"]
["Senkbeil 15187",89103,15187,"Senkbeil","Gerhard","Sen C","F","TSV 1860 Hanau","BV Hanau"]
["Serowy 15189",100738,15189,"Serowy","Gerd","Sen B","D","BC 75 Fortuna","BV Hanau"]
["Siedentopf 15193",67605,15193,"Siedentopf","Peter","Sen C","D","BC Höchst","BV Höchst e.V."]
["Sommer 15203",89130,15203,"Sommer","Walter","Sen B","D","Condor Steinheim","BV Hanau"]
["Spendler 15208",51637,15208,"Spendler","Peggy","Damen","C","FSV Frankfurt","FSV Frankfurt"]
["Spiegler 15209",100841,15209,"Spiegler","Bernd","Sen C","D","BSV Dieburg","1. BSV Dieburg e.V. 1992"]
["Spot 15213",106551,15213,"Spot","Heinz","Sen B","D","BC 83 Kelsterbach","KBV Kelsterbach"]
["Staab 15215",67272,15215,"Staab","Manfred","Sen A","B","TSV 1860 Hanau","BV Hanau"]
["Stapf 15220",66960,15220,"Stapf","Thorsten","Herren","B","BSV Oberrad","BSV 1990 Oberrad"]
["Stein 15230",27446,15230,"Stein","Angelika","Sen C","E","BC Eberstadt","1. BSV Eberstadt"]
["Stephan 15238",89114,15238,"Stephan","Peter","Sen B","B","TSV 1860 Hanau","BV Hanau"]
["Steul 15239",704,15239,"Steul","Karl-Heinz","Sen B","D","BC Blau-Gelb Frankfurt","BV Blau-Gelb Frankfurt e.V."]
["Steul 15240",705,15240,"Steul","Susan","Sen A","D","Cosmos Wiesbaden","BC Cosmos Wiesbaden"]
["Schrank 15251",27325,15251,"Schrank","Nicole","Damen","C","FTG-BC Frankfurt","FTG 1847 Frankfurt"]
["Struth 15257",27253,15257,"Struth","Harald","Sen B","C","BV 1987 Frankfurt","BV 1987 Frankfurt"]
["Tardt 15264",544,15264,"Tardt","Axel","Sen B",0,"BV 1987 Frankfurt","BV 1987 Frankfurt"]
["Tezak 15269",100488,15269,"Tezak","Janko","Sen B","C","BC Darmstadt","1. BSV Darmstadt 1973"]
["Tharra 15270",39671,15270,"Tharra","Marina","Sen A","D","FTG-BC Frankfurt","FTG 1847 Frankfurt"]
["Then 15272",106624,15272,"Then","Manuela","Damen","C","FTG-BC Frankfurt","FTG 1847 Frankfurt"]
["Then 15273",548,15273,"Then","Oliver","Sen A","A","FTG-BC Frankfurt","FTG 1847 Frankfurt"]
["Thierfelder 15274",39223,15274,"Thierfelder","Andreas","Sen A",0,"BC Rebstock Ffm","BV Rebstock"]
["Thurk 15282",100539,15282,"Thurk","Rolf","Sen C","D","BV Oranje Frankfurt","BV Oranje Frankfurt"]
[{"$f":"D323&\" \"&C323","v":"Timter 15284"},39644,15284,"Timter","Vanessa","Damen","A","FTG-BC Frankfurt","FTG 1847 Frankfurt"]
["Tippmann 15287",106649,15287,"Tippmann","Harry","Sen C","E","BC Nord West Ffm","BSV Nord West Frankfurt"]
["Toegel-Bertsch 15289",106278,15289,"Toegel-Bertsch","Sieglinde","Sen B","E","BC Gießen","1. BSV Gießen"]
["Trebbien 15293",909,15293,"Trebbien","Uwe","Sen A","D","BC Devils","BV Oberstedtener Devils e.V."]
["Trebes 15294",100148,15294,"Trebes","Stefan","Sen A","D","BC Eberstadt","1. BSV Eberstadt"]
["Trebes 15295",100149,15295,"Trebes","Thomas","Sen A","E","BC Eberstadt","1. BSV Eberstadt"]
["Trendel 15297",67511,15297,"Trendel","Richard","Sen A","D","SW Friedberg","Schwarz Weiss Friedberg"]
["Uhlig 15305",100689,15305,"Uhlig","Donald","Sen B","B","BC Nord West Ffm","BSV Nord West Frankfurt"]
["Unger 15310",88559,15310,"Unger","Bernd","Sen C",null,"Mainhattan Bowlers Frankfurt","Mainhattan Bowlers Frankfurt"]
["Verdecchia 15318",88625,15318,"Verdecchia","Robert","Sen C",null,"BSV Oberrad","BSV 1990 Oberrad"]
["Vitasovic 15323",100842,15323,"Vitasovic","Kresimir","Sen A","B","BSV Dieburg","1. BSV Dieburg e.V. 1992"]
["Vogel 15324",99942,15324,"Vogel","Bernd","Sen B","E","BV 1987 Frankfurt","BV 1987 Frankfurt"]
["Walter 15337",67512,15337,"Walter","Gerhard","Sen B","C","SW Friedberg","Schwarz Weiss Friedberg"]
["Weidl 15349",27760,15349,"Weidl","Sebastian","Herren",null,"BC Wiesbaden","BC Wiesbaden e.V."]
["Weis 15356",67327,15356,"Weis","Björn","Herren","B","BC Blau-Gelb Frankfurt","BV Blau-Gelb Frankfurt e.V."]
["Weitzel 15361",707,15361,"Weitzel","Matthias","Herren","B","BC Blau-Gelb Frankfurt","BV Blau-Gelb Frankfurt e.V."]
["Wenzel 15365",89106,15365,"Wenzel","Uwe","Sen A","D","TSV 1860 Hanau","BV Hanau"]
["Wiesner 15375",null,15375,"Wiesner","Christoph","Herren","A","BC Gießen","1. BSV Gießen"]
["Willems 15380",39681,15380,"Willems","Jan","Herren",0,"BSV Oberrad","BSV 1990 Oberrad"]
["Willing 15381",null,15381,"Willing","Helmuth","Sen C","E","BC Höchst","BV Höchst e.V."]
["Wolf 15392",708,15392,"Wolf","Lucia","Sen B","F","BC Blau-Gelb Frankfurt","BV Blau-Gelb Frankfurt e.V."]
["Reckemeier 15398",27905,15398,"Reckemeier","Michaela","Damen","B","BC 2000 Aschaffenburg","1. BV Aschaffenburg e.V."]
["Yowell 15408",709,15408,"Yowell","Vernon","Sen C",null,"BC Blau-Gelb Frankfurt","BV Blau-Gelb Frankfurt e.V."]
["Zabel 15410",null,15410,"Zabel","Manfred","Sen B","A","BC 67 Hanau","BV Hanau"]
["Zabelt 15411",null,15411,"Zabelt","Rene","Herren","D","ABV Frankfurt","ABV Frankfurt"]
["Zuhl 15431",1038,15431,"Zuhl","Markus","Herren","C","Citystrikers","BC Citystrikers"]
["Zwirnmann 15432",106603,15432,"Zwirnmann","Rosi","Sen C",null,"BC Höchst","BV Höchst e.V."]
["Schlösser 15440",100132,15440,"Schlösser","Patrick","Herren","F","Mainhattan Bowlers Frankfurt","Mainhattan Bowlers Frankfurt"]
["Tanhaei-Bazkiaei 15454",27369,15454,"Tanhaei-Bazkiaei","Djamshid","Sen A",null,"Mainhattan Bowlers Frankfurt","Mainhattan Bowlers Frankfurt"]
["Krüger 15461",89098,15461,"Krüger","Petra","Sen A","D","TSV 1860 Hanau","BV Hanau"]
["Krüger 15462",100474,15462,"Krüger","Michael","Sen A","D","TSV 1860 Hanau","BV Hanau"]
["Schönhoff 15472",66857,15472,"Schönhoff","Andreas","Herren","A","1. BV Kelsterbach","1. BV Kelsterbach e.V."]
["Hentschel 15475",67601,15475,"Hentschel","Klaus Dieter","Sen C","E","BC Höchst","BV Höchst e.V."]
["Linke 15477",146184,15477,"Linke","Nicole","Damen",0,"BC Höchst","BV Höchst e.V."]
["Krüger 15497",100472,15497,"Krüger","Carmen","Sen A","D","TSV 1860 Hanau","BV Hanau"]
["Krüger 15499",100474,15499,"Krüger","Michael","Sen A","B","TSV 1860 Hanau","BV Hanau"]
["Hein 15520",79845,15520,"Hein","Karsten","Herren","D","BC 67 Hanau","BV Hanau"]
["Arold 15530",140,15530,"Arold","Daniel","Herren","C","BV 1987 Frankfurt","BV 1987 Frankfurt"]
["Hartmann 15531",null,15531,"Hartmann","Philipp","Herren",0,"ABV Frankfurt","ABV Frankfurt"]
["Rifinius 15543",227,15543,"Rifinius","Irina","Damen",null,"BC Blau-Gelb Frankfurt","BV Blau-Gelb Frankfurt e.V."]
["Härtl 15555",305,15555,"Härtl","Rudolf","Sen B","D","BC 67 Hanau","BV Hanau"]
["Beumer 15569",528,15569,"Beumer","Christoph","Sen A","B","TSV 1860 Hanau","BV Hanau"]
["Kärmer 15570",283,15570,"Kärmer","Björn","Herren","C","BV 1987 Frankfurt","BV 1987 Frankfurt"]
["Seemann 15575",307,15575,"Seemann","Thomas","Herren","D","Mainhattan Bowlers Frankfurt","Mainhattan Bowlers Frankfurt"]
["Schröder 15577",51115,15577,"Schröder","Philip","Herren",null,"BV 1987 Frankfurt","BV 1987 Frankfurt"]
["Fischer 15578",242,15578,"Fischer","Oliver","Herren","C","BC Höchst","BV Höchst e.V."]
["Schulz 15579",243,15579,"Schulz","Christian","Herren","C","BC Höchst","BV Höchst e.V."]
["Poller 15596",27352,15596,"Poller","Elke","Sen A",0,"BV 77 Frankfurt","BV 77 Frankfurt"]
["Rott 15598",954,15598,"Rott","Waltraud","Sen B","E","Mainhattan Bowlers Frankfurt","Mainhattan Bowlers Frankfurt"]
["Moor 15613",441,15613,"Moor","Paul","Herren",0,"Finale Kassel","BSV Kassel"]
["Gilbert 15644",1069,15644,"Gilbert","Bertram","Sen B","D","BC Gießen","1. BSV Gießen"]
["Beyer 15646",89296,15646,"Beyer","Petra","Sen B","D","BC Gießen","1. BSV Gießen"]
["Greenaway 15647",27172,15647,"Greenaway","Jesse","Sen B","E","Mainhattan Bowlers Frankfurt","Mainhattan Bowlers Frankfurt"]
["Neß 15653",27045,15653,"Neß","Daniel","Herren","B","Phönix Frankfurt","BV 95 Phönix Frankfurt e.V."]
["Theis-Franke 15669",27367,15669,"Theis-Franke","Jörg","Sen A","C","TSV 1860 Hanau","BV Hanau"]
["Rahner 15674",27439,15674,"Rahner","Viktor","Sen A","E","BV 1987 Frankfurt","BV 1987 Frankfurt"]
["Doffin 15675",27440,15675,"Doffin","Wolfgang","Sen B","D","BV 1987 Frankfurt","BV 1987 Frankfurt"]
["Rabenseifner 15679",27291,15679,"Rabenseifner","René","Herren","B","BC Wiesbaden","BC Wiesbaden e.V."]
["Becker 15686",27492,15686,"Becker","Holger","Sen A","D","BC Eberstadt","1. BSV Eberstadt"]
["Herling 15698",39201,15698,"Herling","Hagen","Sen A","F","BSV Dieburg","1. BSV Dieburg e.V. 1992"]
["Vogt 15699",27785,15699,"Vogt","Matthias","Sen A","D","BC 83 Kelsterbach","KBV Kelsterbach"]
["Schnellbacher 15703",27466,15703,"Schnellbacher","Peter","Sen B","D","BC Darmstadt","1. BSV Darmstadt 1973"]
["Biskoping 15704",27456,15704,"Biskoping","Robin","Sen A","D","BC Gießen","1. BSV Gießen"]
["Hübner 15705",27815,15705,"Hübner","Dennis","Herren","A","ABV Frankfurt","ABV Frankfurt"]
[{"$f":"D387&\" \"&C387","v":"Drabe 15709"},27701,15709,"Drabe","Sven","Herren","D","BC 83 Kelsterbach","KBV Kelsterbach"]
["Bartossek 15714",27813,15714,"Bartossek","Peter","Sen A","E","BC Mühlheim","BV Mühlheim"]
["Bauer 15717",27841,15717,"Bauer","Hans Jürgen","Sen C","E","1. BV Kelsterbach","1. BV Kelsterbach e.V."]
["Berz 15725",27998,15725,"Berz","Wolfgang","Sen A","E","BC Mühlheim","BV Mühlheim"]
["Diehl 15731",39309,15731,"Diehl","Karl","Herren","D","BC Darmstadt","1. BSV Darmstadt 1973"]
["Heßler 15740",144499,15740,"Heßler","Patrick","Jun",null,"Mainhattan Bowlers Frankfurt","Mainhattan Bowlers Frankfurt"]
["Wilson 15741",40023,15741,"Wilson","Joseph","Herren",0,"BC Darmstadt","1. BSV Darmstadt 1973"]
["Mader 15754",40056,15754,"Mader","Chantal","Jun","C","FTG-BC Frankfurt","FTG 1847 Frankfurt"]
["Wolf 15757",40181,15757,"Wolf","Harald","Sen C","D","BC Darmstadt","1. BSV Darmstadt 1973"]
["Stolz 15758",39537,15758,"Stolz","Torsten","Sen A","D","BSV Dieburg","1. BSV Dieburg e.V. 1992"]
["Fritzjus 15762",39347,15762,"Fritzjus","Jasmin","Damen","C","FSV Frankfurt","FSV Frankfurt"]
["Löschnig 15764",null,15764,"Löschnig","Stephan","Herren","E","FTG-BC Frankfurt","FTG 1847 Frankfurt"]
["Wiederhold 15766",39421,15766,"Wiederhold","Alexander","Herren",0,"BV 77 Frankfurt","BV 77 Frankfurt"]
["Krämer 15768",39642,15768,"Krämer","Tobias","Herren","B","BV Pinoy Frankfurt","BV Pinoy Frankfurt e.V."]
["Pohl 15769",39409,15769,"Pohl","Kanittha","Damen","B","BC Blau-Gelb Frankfurt","BV Blau-Gelb Frankfurt e.V."]
["Völker 15772",39542,15772,"Völker","Terry","Sen B","D","BC Langen 83","BSV Langen 83"]
["Machura 15782",39635,15782,"Machura","Sandra","Damen","C","BC 83 Kelsterbach","KBV Kelsterbach"]
["Machura 15783",39637,15783,"Machura","Damian","Herren","A","BC 83 Kelsterbach","KBV Kelsterbach"]
["Cussler 15784",39634,15784,"Cussler","Karl","Sen C","F","BC 83 Kelsterbach","KBV Kelsterbach"]
["Kimbell 15792",51130,15792,"Kimbell","Michael","Herren","D","BC Langen 83","BSV Langen 83"]
["Leonhardt 15793",51110,15793,"Leonhardt","Yves","Herren","C","Bowlingsportclub Bensheim 08 e.V","Bowlingsportclub Bensheim 08 e.V"]
["Wright 15795",51108,15795,"Wright","Claudia","Sen A","D","Bowlingsportclub Bensheim 08 e.V","Bowlingsportclub Bensheim 08 e.V"]
["Wright 15796",51109,15796,"Wright","Mark","Sen A","D","Bowlingsportclub Bensheim 08 e.V","Bowlingsportclub Bensheim 08 e.V"]
["Haase 15803",51192,15803,"Haase","Reiner","Sen B","D","BV 1987 Frankfurt","BV 1987 Frankfurt"]
["Flick 15804",51196,15804,"Flick","Peter Uwe","Sen A",null,"Phönix Frankfurt","BV 95 Phönix Frankfurt e.V."]
["Heuckeroth 15810",51233,15810,"Heuckeroth","Anna","Jun","B","FTG-BC Frankfurt","FTG 1847 Frankfurt"]
["Hakin 15813",51304,15813,"Hakin","Fabio","Herren","B","BC Blau-Gelb Frankfurt","BV Blau-Gelb Frankfurt e.V."]
["Bikowski 15816",39785,15816,"Bikowski","Manuel","Herren",null,"BSV Dieburg","1. BSV Dieburg e.V. 1992"]
["Bott 15823",51453,15823,"Bott","Inge","Sen B","D","FTG-BC Frankfurt","FTG 1847 Frankfurt"]
["Pietzsch 15824",51617,15824,"Pietzsch","Frank","Sen A","D","FTG-BC Frankfurt","FTG 1847 Frankfurt"]
["Rousselange 15825",51616,15825,"Rousselange","Florian","Herren","A","BC 67 Hanau","BV Hanau"]
["Gertenbach 15827",51483,15827,"Gertenbach","Sabine","Sen C","D","Mainhattan Bowlers Frankfurt","Mainhattan Bowlers Frankfurt"]
["Hein 15833",51625,15833,"Hein","Marco","Herren",null,"BC 2000 Aschaffenburg","1. BV Aschaffenburg e.V."]
["Heeg 15834",51626,15834,"Heeg","Heiko","Herren","C","BC 2000 Aschaffenburg","1. BV Aschaffenburg e.V."]
["Reich 15837",51681,15837,"Reich","Michael","Sen A","C","Bowlingsportclub Bensheim 08 e.V","Bowlingsportclub Bensheim 08 e.V"]
["Stephan 15842",51900,15842,"Stephan","Timm","Herren",null,"TSV 1860 Hanau","BV Hanau"]
["Kohle 15845",51913,15845,"Kohle","Richard","Sen C","E","BC Darmstadt","1. BSV Darmstadt 1973"]
["Widuckel 15849",51887,15849,"Widuckel","Renè","Herren","C","Citystrikers","BC Citystrikers"]
["Malow 15859",51970,15859,"Malow","Marco","Sen A","C","BV 1987 Frankfurt","BV 1987 Frankfurt"]
["Herbert 15861",51956,15861,"Herbert","Peter","Sen A","E","TSV 1860 Hanau","BV Hanau"]
["Zuhl 15864",51676,15864,"Zuhl","Tanja","Damen","D","Citystrikers","BC Citystrikers"]
["Schulz 15865",51323,15865,"Schulz","Michaela","Sen A","D","Citystrikers","BC Citystrikers"]
["Mand 15876",51275,15876,"Mand","Lothar","Sen A","D","Finale Kassel","BSV Kassel"]
["Holzwarth 15877",52035,15877,"Holzwarth","Christian","Herren","D","BC Mühlheim","BV Mühlheim"]
["Ress 15880",52059,15880,"Ress","Andreas","Sen A","D","BC Rebstock Ffm","BV Rebstock"]
["Hassenpflug 15881",52056,15881,"Hassenpflug","Marcel","Herren","D","BC Blau-Gelb Frankfurt","BV Blau-Gelb Frankfurt e.V."]
["Hochhaus 15885",66767,15885,"Hochhaus","Jonny","Sen A","D","BC 83 Kelsterbach","KBV Kelsterbach"]
["Bertsch 15890",67177,15890,"Bertsch","Hans-Joachim","Sen B","E","BC Gießen","1. BSV Gießen"]
["Hochhaus 15891",67273,15891,"Hochhaus","Jan","Herren","D","BC 83 Kelsterbach","KBV Kelsterbach"]
["Olbrich 15892",67428,15892,"Olbrich","Bernd","Sen A","C","BC Nord West Ffm","BSV Nord West Frankfurt"]
["Reich 15899",67235,15899,"Reich","Peggy","Damen",null,"Bowlingsportclub Bensheim 08 e.V","Bowlingsportclub Bensheim 08 e.V"]
["Reich 15900",67236,15900,"Reich","Bianca","Jun",null,"Bowlingsportclub Bensheim 08 e.V","Bowlingsportclub Bensheim 08 e.V"]
["Kuderna 15904",67240,15904,"Kuderna","Alexander","Herren","C","Bowlingsportclub Bensheim 08 e.V","Bowlingsportclub Bensheim 08 e.V"]
["Listmann 15905",67249,15905,"Listmann","Thorsten","Herren",0,"Bowlingsportclub Bensheim 08 e.V","Bowlingsportclub Bensheim 08 e.V"]
["Hellersberg 15907",67242,15907,"Hellersberg","Dulce","Damen","E","BV Pinoy Frankfurt","BV Pinoy Frankfurt e.V."]
["Zuhl 15909",67274,15909,"Zuhl","Maximilian","Jun",null,"Citystrikers","BC Citystrikers"]
["Tezak 15912",67337,15912,"Tezak","Franz","Sen C","D","BC Darmstadt","1. BSV Darmstadt 1973"]
["Lamprecht 15918",67387,15918,"Lamprecht","Angelika","Sen B","C","BC Blau-Gelb Frankfurt","BV Blau-Gelb Frankfurt e.V."]
["Roloff 15925",67459,15925,"Roloff","Patrick","Herren",null,"BC Blau-Gelb Frankfurt","BV Blau-Gelb Frankfurt e.V."]
["Rejzek 15929",67508,15929,"Rejzek","Alexander","Jun","B","BC 83 Kelsterbach","KBV Kelsterbach"]
["Fleischhacker 15935",67549,15935,"Fleischhacker","Michael","Herren","A","BC 83 Kelsterbach","KBV Kelsterbach"]
["Hochhaus 15937",67660,15937,"Hochhaus","Barbara","Sen A","D","SW Friedberg","Schwarz Weiss Friedberg"]
["Tambosi 15943",89301,15943,"Tambosi","Michael","Sen B","C","Mainhattan Bowlers Frankfurt","Mainhattan Bowlers Frankfurt"]
["Adjei 15947",99874,15947,"Adjei","Danilo","Herren","E","FTG-BC Frankfurt","FTG 1847 Frankfurt"]
[{"$f":"D451&\" \"&C451","v":"Thatcher 15952"},100357,15952,"Thatcher","Daniel","Herren","D","Bowlingsportclub Bensheim 08 e.V","Bowlingsportclub Bensheim 08 e.V"]
["Mlotek 15954",100355,15954,"Mlotek","Marc","Herren",null,"Bowlingsportclub Bensheim 08 e.V","Bowlingsportclub Bensheim 08 e.V"]
["Grieb 15958",100558,15958,"Grieb","Waldemar","Sen B","E","Mainhattan Bowlers Frankfurt","Mainhattan Bowlers Frankfurt"]
["Fastus 15962",100568,15962,"Fastus","Lars","Jug A","B","FTG-BC Frankfurt","FTG 1847 Frankfurt"]
["Wolf 15963",89392,15963,"Wolf","Klaudia","Sen A","B","BC Blau-Gelb Frankfurt","BV Blau-Gelb Frankfurt e.V."]
["Claus 15967",100651,15967,"Claus","Markus","Herren","E","BC Darmstadt","1. BSV Darmstadt 1973"]
["Müller 15972",100344,15972,"Müller","Tobias","Herren","D","Finale Kassel","BSV Kassel"]
["Spohr 15975",100748,15975,"Spohr","Philipp","Herren","B","Finale Kassel","BSV Kassel"]
["Puder 15987",106692,15987,"Puder","Alexander","Herren","D","Citystrikers","BC Citystrikers"]
["Glück 15989",106699,15989,"Glück","Andreas","Herren","D","BC Devils","BV Oberstedtener Devils e.V."]
["Bauer 15991",106704,15991,"Bauer","Dominik","Herren","C","BC Blau-Gelb Frankfurt","BV Blau-Gelb Frankfurt e.V."]
["Trendel 15996",106750,15996,"Trendel","Marvin","Herren","D","SW Friedberg","Schwarz Weiss Friedberg"]
["Vogt 15998",106765,15998,"Vogt","Michael","Sen A","D","BC Wiesbaden","BC Wiesbaden e.V."]
["Hernitschek 16386",762478,16386,"Hernitschek","Andreas","Herren","A","Finale Kassel","BSV Kassel"]
["Konieczny 18802",24988,18802,"Konieczny","Bodo","Herren","A","Finale Kassel","BSV Kassel"]
["Körber 18938",39952,18938,"Körber","Martina","Sen A","D","TSV 1860 Hanau","BV Hanau"]
["Doczkal 22215",66961,22215,"Doczkal","Thomas","Herren","D","ABV Frankfurt","ABV Frankfurt"]
["Berk 23125",100322,23125,"Berk","Johannes","Sen B","B","Mainhattan Bowlers Frankfurt","Mainhattan Bowlers Frankfurt"]
["Morig 24826",109106,24826,"Morig","Oliver","Herren","A","Finale Kassel","BSV Kassel"]
["Teece 25587",79779,25587,"Teece","Richard","Herren","A","Finale Kassel","BSV Kassel"]
["Schütz 26117",40304,26117,"Schütz","Ulrike","Sen A","D","FTG-BC Frankfurt","FTG 1847 Frankfurt"]
["Jonasdofsky 26146",40323,26146,"Jonasdofsky","Mark","Herren","A","Phönix Frankfurt","BV 95 Phönix Frankfurt e.V."]
["Winternheimer 26157",40294,26157,"Winternheimer","Pascal","Herren","A","Finale Kassel","BSV Kassel"]
["Maaß 26427",140119,26427,"Maaß","Christian","Herren","C","BC Wiesbaden","BC Wiesbaden e.V."]
["Gehrmann 26507",84857,26507,"Gehrmann","René","Herren","B","BC 67 Hanau","BV Hanau"]
["Schuckart-Cramer 26526",144521,26526,"Schuckart-Cramer","Sascha","Herren","D","BC Wiesbaden","BC Wiesbaden e.V."]
["Cramer 26594",144522,26594,"Cramer","Silvio","Jug A","E","BC Wiesbaden","BC Wiesbaden e.V."]
["Lebkücher 26651",127817,26651,"Lebkücher","Christian","Herren","B","BC 83 Kelsterbach","KBV Kelsterbach"]
["Schneider 26661",127904,26661,"Schneider","Dennis","Jug B",null,"Phönix Frankfurt","BV 95 Phönix Frankfurt e.V."]
["Schneider 26662",127909,26662,"Schneider","Max","Jug A",null,"Phönix Frankfurt","BV 95 Phönix Frankfurt e.V."]
["Beier 28797",104144,28797,"Beier","Tobias","Jun","A","Finale Kassel","BSV Kassel"]
["Weiss 30045",146121,30045,"Weiss","Holger","Herren",null,"Bowlingsportclub Bensheim 08 e.V","Bowlingsportclub Bensheim 08 e.V"]
["Walther 30106",120228,30106,"Walther","Heike","Damen","D","BV Pinoy Frankfurt","BV Pinoy Frankfurt e.V."]
["Sawicki 31298",12281,31298,"Sawicki","Claudia","Damen","A","BV 77 Frankfurt","BV 77 Frankfurt"]
["Hampel 33001",51500,33001,"Hampel","Peter","Sen A","D","Citystrikers","BC Citystrikers"]
["Altunok 33002",106785,33002,"Altunok","Ümit","Herren",null,"BC 67 Hanau","BV Hanau"]
["Koths 33003",106784,33003,"Koths","Katrin","Sen A","C","Condor Steinheim","BV Hanau"]
["Dierks 33004",106791,33004,"Dierks","Carsten","Sen A","C","BC Darmstadt","1. BSV Darmstadt 1973"]
["Spreng 33009",106797,33009,"Spreng","Markus","Herren",null,"BC Mühlheim","BV Mühlheim"]
["Spreng 33010",106798,33010,"Spreng","Dominic","Jug A",null,"BC Mühlheim","BV Mühlheim"]
["Löffler 33012",106829,33012,"Löffler","Dieter","Sen A",null,"BC 2000 Aschaffenburg","1. BV Aschaffenburg e.V."]
["Burgess 33013",106828,33013,"Burgess","David","Herren","D","BC 2000 Aschaffenburg","1. BV Aschaffenburg e.V."]
["Jantschik 33015",106832,33015,"Jantschik","Leonhard","Sen B","D","Mainhattan Bowlers Frankfurt","Mainhattan Bowlers Frankfurt"]
["Löw 33019",106848,33019,"Löw","Maximilian","Herren","E","FTG-BC Frankfurt","FTG 1847 Frankfurt"]
["Hartsch 33022",106854,33022,"Hartsch","David","Herren","C","BC Rebstock Ffm","BV Rebstock"]
["Balzer 33026",67633,33026,"Balzer","Phyllis","Jun","E","BC Gießen","1. BSV Gießen"]
["Mansel 33027",106914,33027,"Mansel","Klaus","Sen B",null,"Citystrikers","BC Citystrikers"]
["Rothenbacher 33029",106915,33029,"Rothenbacher","Ralph","Sen B","E","SW Friedberg","Schwarz Weiss Friedberg"]
["Bugs 33031",106925,33031,"Bugs","Sven","Herren",0,"SW Friedberg","Schwarz Weiss Friedberg"]
["Jourdan 33032",106926,33032,"Jourdan","Frank","Herren","E","BC 83 Kelsterbach","KBV Kelsterbach"]
["Wolf 33034",106936,33034,"Wolf","Matthias","Sen A",0,"BC Devils","BV Oberstedtener Devils e.V."]
["Teuser 33035",106938,33035,"Teuser","Franziska","Damen","F","BC Gießen","1. BSV Gießen"]
["Rohn 33036",106939,33036,"Rohn","Jörg","Herren","C","Phönix Frankfurt","BV 95 Phönix Frankfurt e.V."]
["Krug 33037",106940,33037,"Krug","Reiner","Herren","D","TSV 1860 Hanau","BV Hanau"]
["Staudte 33042",106947,33042,"Staudte","Thomas","Sen A","D","BC Langen 83","BSV Langen 83"]
["Balzer 33043",67664,33043,"Balzer","Armin","Sen A","E","BC Gießen","1. BSV Gießen"]
["Lella 33048",106968,33048,"Lella","Michele Antonio","Herren","C","BC 83 Kelsterbach","KBV Kelsterbach"]
["Vogelrieder 33049",106970,33049,"Vogelrieder","Josef","Sen C","D","BV Frankfurt Süd","BV Frankfurt Süd"]
["Staudte 33050",106971,33050,"Staudte","Anita","Sen B","E","BC Langen 83","BSV Langen 83"]
["Neubauer 33051",106973,33051,"Neubauer","Eva","Sen B","E","BC Eberstadt","1. BSV Eberstadt"]
["Trebes 33052",106972,33052,"Trebes","Kerstin","Damen","C","BC 2000 Aschaffenburg","1. BV Aschaffenburg e.V."]
["Siebert 33055",106891,33055,"Siebert","Björn","Sen A","E","BC Blau-Gelb Frankfurt","BV Blau-Gelb Frankfurt e.V."]
["Doffin 33061",106989,33061,"Doffin","Rebecca","Damen","C","BC 83 Kelsterbach","KBV Kelsterbach"]
["Hebenstreit 33063",106992,33063,"Hebenstreit","Christina","Damen","D","Bowlingsportclub Bensheim 08 e.V","Bowlingsportclub Bensheim 08 e.V"]
[{"$f":"D515&\" \"&C515","v":"Derleth 33067"},106996,33067,"Derleth","Michael","Herren","F","BC 83 Kelsterbach","KBV Kelsterbach"]
["Bruckmann 33068",106999,33068,"Bruckmann","Heike","Damen","F","BC 2000 Aschaffenburg","1. BV Aschaffenburg e.V."]
["Kaiser 33070",106998,33070,"Kaiser","Dominik","Herren",null,"Mainhattan Bowlers Frankfurt","Mainhattan Bowlers Frankfurt"]
["Ries 33071",107000,33071,"Ries","Tobias","Herren","D","TSV 1860 Hanau","BV Hanau"]
["Hönicke 33072",107007,33072,"Hönicke","Volker","Sen A","D","BC Eberstadt","1. BSV Eberstadt"]
["Helfrich 33075",107024,33075,"Helfrich","Rainer","Sen A","B","FTG-BC Frankfurt","FTG 1847 Frankfurt"]
["Kügler 33080",132582,33080,"Kügler","Claudia Stephanie","Damen",0,"TSV 1860 Hanau","BV Hanau"]
["Hüllenhütter 33089",107088,33089,"Hüllenhütter","Peter","Sen B","C","BC Wiesbaden","BC Wiesbaden e.V."]
["Gallo 33092",107121,33092,"Gallo","Adrian","Jun","B","Phönix Frankfurt","BV 95 Phönix Frankfurt e.V."]
["Spies 33094",107131,33094,"Spies","Richard","Sen A","E","1. BV Kelsterbach","1. BV Kelsterbach e.V."]
["Wolff 33095",107136,33095,"Wolff","Svenja","Damen","D","Citystrikers","BC Citystrikers"]
["Winkelmann 33096",107137,33096,"Winkelmann","Marco","Herren","B","BC 83 Kelsterbach","KBV Kelsterbach"]
["Schenke 33097",107137,33097,"Schenke","Oliver","Herren","F","1. BV Kelsterbach","1. BV Kelsterbach e.V."]
["Grünheid 33098",107146,33098,"Grünheid","Malte","Herren","D","Condor Steinheim","BV Hanau"]
["Gaither 33102",132405,33102,"Gaither","Janette","Damen",0,"Bowlingsportclub Bensheim 08 e.V","Bowlingsportclub Bensheim 08 e.V"]
["Geck 33106",132417,33106,"Geck","Maurice","Jun","C","BC Gießen","1. BSV Gießen"]
["Mayer 33109",132419,33109,"Mayer","Ursula","Sen B","D","TSV 1860 Hanau","BV Hanau"]
["Suchy 33110",132424,33110,"Suchy","Nikolai","Sen A",0,"BC 83 Kelsterbach","KBV Kelsterbach"]
["Omer 33113",132467,33113,"Omer","Holger","Herren","D","TSV 1860 Hanau","BV Hanau"]
["Hügin 33114",132472,33114,"Hügin","Carina","Damen","B","BC 2000 Aschaffenburg","1. BV Aschaffenburg e.V."]
["Schreiner 33121",132509,33121,"Schreiner","Markus","Herren","D","BC Darmstadt","1. BSV Darmstadt 1973"]
["Franz 33123",132519,33123,"Franz","Eitel","Sen B","E","BC Eberstadt","1. BSV Eberstadt"]
["Ritter 33124",132524,33124,"Ritter","Marina","Sen B",0,"BC Devils","BV Oberstedtener Devils e.V."]
["Jerke 33127",132529,33127,"Jerke","Jonathan","Jug A","C","1. BV Kelsterbach","1. BV Kelsterbach e.V."]
["Weidinger 33130",132546,33130,"Weidinger","Siegbert","Sen B","D","BC 83 Kelsterbach","KBV Kelsterbach"]
["Schwimmer 33131",132547,33131,"Schwimmer","Patrick","Herren","D","FTG-BC Frankfurt","FTG 1847 Frankfurt"]
["Seitz 33134",132578,33134,"Seitz","Dieter","Sen A","D","FTG-BC Frankfurt","FTG 1847 Frankfurt"]
["Zwegerl 33135",132585,33135,"Zwegerl","Andreas","Herren","F","BC 83 Kelsterbach","KBV Kelsterbach"]
["Winkelmann 33136",132586,33136,"Winkelmann","Nick","Jug A","E","BC 83 Kelsterbach","KBV Kelsterbach"]
["Henneberg 33137",132589,33137,"Henneberg","Nico","Herren","C","Finale Kassel","BSV Kassel"]
["Mück 33138",132597,33138,"Mück","Michaela","Damen","D","BV Pinoy Frankfurt","BV Pinoy Frankfurt e.V."]
["Kastner 33139",132595,33139,"Kastner","Werner","Sen A","E","Bowlingsportclub Bensheim 08 e.V","Bowlingsportclub Bensheim 08 e.V"]
["Hohmann 33143",132600,33143,"Hohmann","Uwe","Sen A","D","Queer-Striker","Frankfurter Volleyball Verein e.V."]
["Schmitt 33145",135802,33145,"Schmitt","Markus","Herren","E","Queer-Striker","Frankfurter Volleyball Verein e.V."]
["Kohler 33146",135803,33146,"Kohler","William Glenn","Sen B","D","Queer-Striker","Frankfurter Volleyball Verein e.V."]
["Heininger 33147",135806,33147,"Heininger","Julia","Jun",null,"BC 2000 Aschaffenburg","1. BV Aschaffenburg e.V."]
["Grünheid 33148",135807,33148,"Grünheid","Uwe","Sen C","F","Condor Steinheim","BV Hanau"]
["Özsoy 33149",135812,33149,"Özsoy","Volkan","Herren","B","Finale Kassel","BSV Kassel"]
["Rogalla 33150",135816,33150,"Rogalla","Frank","Sen B","B","BV 77 Frankfurt","BV 77 Frankfurt"]
["Vogt 33152",135820,33152,"Vogt","Kitiyalath","Damen","D","BC 83 Kelsterbach","KBV Kelsterbach"]
["Höhn 33153",135822,33153,"Höhn","Sascha","Herren","E","BC 83 Kelsterbach","KBV Kelsterbach"]
["Bien 33154",135823,33154,"Bien","Angelika","Sen B","E","BV Oranje Frankfurt","BV Oranje Frankfurt"]
["Hartmann 33156",135831,33156,"Hartmann","Detlef","Sen B","E","BC Darmstadt","1. BSV Darmstadt 1973"]
["Michael 33158",135838,33158,"Michael","Alexander","Herren","E","SW Friedberg","Schwarz Weiss Friedberg"]
["Blecher 33160",135843,33160,"Blecher","Lucas","Jun","E","SW Friedberg","Schwarz Weiss Friedberg"]
["Tross 33162",135854,33162,"Tross","Shannon Renee","Jug B",0,"FTG-BC Frankfurt","FTG 1847 Frankfurt"]
["Gutzwiller 33163",135861,33163,"Gutzwiller","Stephan","Herren",null,"BV Frankfurt Süd","BV Frankfurt Süd"]
["Horn 33164",135868,33164,"Horn","Fabien","Herren","B","Finale Kassel","BSV Kassel"]
["Paul 33165",135832,33165,"Paul","Anja","Sen A","C","Citystrikers","BC Citystrikers"]
["Müller 33167",135873,33167,"Müller","Alex","Herren","E","BSV Dieburg","1. BSV Dieburg e.V. 1992"]
["Klein 33168",135883,33168,"Klein","Horst","Sen B","D","BC 75 Fortuna","BV Hanau"]
["Brieden 33169",135885,33169,"Brieden","Michael","Herren","D","BC Gießen","1. BSV Gießen"]
["Frank 33170",135895,33170,"Frank","Johann-Peter","Sen C","D","1. BV Kelsterbach","1. BV Kelsterbach e.V."]
["Kaiser 33173",135901,33173,"Kaiser","Oliver","Sen A","F","Mainhattan Bowlers Frankfurt","Mainhattan Bowlers Frankfurt"]
["Kaiser 33174",135900,33174,"Kaiser","Petra","Sen A","E","Mainhattan Bowlers Frankfurt","Mainhattan Bowlers Frankfurt"]
["Korb 33175",135907,33175,"Korb","Daniel","Herren","F","1. BV Kelsterbach","1. BV Kelsterbach e.V."]
["Manuel 33176",135911,33176,"Manuel","Arjay","Herren","E","BV Pinoy Frankfurt","BV Pinoy Frankfurt e.V."]
["Wege 33177",135912,33177,"Wege","Gerhard","Sen B","E","Queer-Striker","Frankfurter Volleyball Verein e.V."]
["Becker 33178",33178,33178,"Becker","Nils","Jug A",null,"Mainhattan Bowlers Frankfurt","Mainhattan Bowlers Frankfurt"]
["Klassen 33179",135918,33179,"Klassen","Lukas","Jug A","F","BC Gießen","1. BSV Gießen"]
["Krumrey 33180",135926,33180,"Krumrey","André","Herren","F","BSV Dieburg","1. BSV Dieburg e.V. 1992"]
["Seitz 33181",135940,33181,"Seitz","Maximilian","Jug A","F","FTG-BC Frankfurt","FTG 1847 Frankfurt"]
["Ruppel 33184",135954,33184,"Ruppel","Heinz-Georg","Sen B",null,"BC Devils","BV Oberstedtener Devils e.V."]
["Wien 33185",135970,33185,"Wien","Stefan","Sen A","F","SW Friedberg","Schwarz Weiss Friedberg"]
[{"$f":"D579&\" \"&C579","v":"Blecher 33186"},135971,33186,"Blecher","Anika","Damen",0,"SW Friedberg","Schwarz Weiss Friedberg"]
["Pöckler 33187",135958,33187,"Pöckler","Maren-Janette","Damen","E","Citystrikers","BC Citystrikers"]
["Graf 33188",135959,33188,"Graf","Herta","Sen B","D","ABV Frankfurt","ABV Frankfurt"]
["Fried 33190",135961,33190,"Fried","Dominic","Herren",null,"BC 2000 Aschaffenburg","1. BV Aschaffenburg e.V."]
["Fried 33191",135962,33191,"Fried","Sonja","Damen",null,"BC 2000 Aschaffenburg","1. BV Aschaffenburg e.V."]
["Rüffer 33193",135979,33193,"Rüffer","Andreas","Sen A","E","Mainhattan Bowlers Frankfurt","Mainhattan Bowlers Frankfurt"]
["Zehentmaier 33194",135995,33194,"Zehentmaier","Lucas","Herren","C","Blau-Gelb Fulda Strikers","PSV BG Fulda 1934/61 e.V."]
["Bämpfer 33195",135994,33195,"Bämpfer","Gerald","Sen A","D","Blau-Gelb Fulda Strikers","PSV BG Fulda 1934/61 e.V."]
["Krönung 33196",135993,33196,"Krönung","Peter","Sen A","D","Blau-Gelb Fulda Strikers","PSV BG Fulda 1934/61 e.V."]
["Seuring 33197",135992,33197,"Seuring","Harald","Sen A","E","Blau-Gelb Fulda Strikers","PSV BG Fulda 1934/61 e.V."]
["Traber 33198",135991,33198,"Traber","Sandro","Sen A","C","Blau-Gelb Fulda Strikers","PSV BG Fulda 1934/61 e.V."]
["Traber 33199",135990,33199,"Traber","Anita","Sen A","F","Blau-Gelb Fulda Strikers","PSV BG Fulda 1934/61 e.V."]
["Decher 33200",135988,33200,"Decher","Carsten","Herren","F","Blau-Gelb Fulda Strikers","PSV BG Fulda 1934/61 e.V."]
["Philipp 33201",135987,33201,"Philipp","Thomas","Sen A","D","Blau-Gelb Fulda Strikers","PSV BG Fulda 1934/61 e.V."]
["Oezkan 33202",135986,33202,"Oezkan","Kaan","Herren","D","Blau-Gelb Fulda Strikers","PSV BG Fulda 1934/61 e.V."]
["De Fries 33203",135985,33203,"De Fries","Frank","Sen A","D","Blau-Gelb Fulda Strikers","PSV BG Fulda 1934/61 e.V."]
["Schröter 33204",135984,33204,"Schröter","Melanie","Damen","E","Blau-Gelb Fulda Strikers","PSV BG Fulda 1934/61 e.V."]
["Zimmermann 33205",135983,33205,"Zimmermann","Daniel","Herren","D","Blau-Gelb Fulda Strikers","PSV BG Fulda 1934/61 e.V."]
["Geis 33206",135982,33206,"Geis","Dominik","Jun","D","Blau-Gelb Fulda Strikers","PSV BG Fulda 1934/61 e.V."]
["Hofmann 33207",135981,33207,"Hofmann","Maximilian","Herren","C","Blau-Gelb Fulda Strikers","PSV BG Fulda 1934/61 e.V."]
["Pronk 33209",135998,33209,"Pronk","Antares","Herren","C","Blau-Gelb Fulda Strikers","PSV BG Fulda 1934/61 e.V."]
["Hoffmann 33210",140057,33210,"Hoffmann","Rene","Herren",0,"SW Friedberg","Schwarz Weiss Friedberg"]
["Jäckel 33211",140059,33211,"Jäckel","Dennis","Herren","E","Bowlingsportclub Bensheim 08 e.V","Bowlingsportclub Bensheim 08 e.V"]
["Oriakhel 33212",140060,33212,"Oriakhel","Fahim","Jun",0,"Bowlingsportclub Bensheim 08 e.V","Bowlingsportclub Bensheim 08 e.V"]
["Kolb 33213",14061,33213,"Kolb","Nadine","Damen","C","BC Gießen","1. BSV Gießen"]
["Pistara 33214",140070,33214,"Pistara","Marco","Herren","D","Mainhattan Bowlers Frankfurt","Mainhattan Bowlers Frankfurt"]
["Siemon 33215",140087,33215,"Siemon","Anja","Sen A","D","Citystrikers","BC Citystrikers"]
["Reß 33216",140097,33216,"Reß","Gavino","Sen A",null,"BSV Oberrad","BSV 1990 Oberrad"]
["Rau 33217",140101,33217,"Rau","Oliver","Herren","F","Citystrikers","BC Citystrikers"]
["Rabe 33220",140108,33220,"Rabe","Thomas","Herren","D","BC Langen 83","BSV Langen 83"]
["Kümpel 33221",140110,33221,"Kümpel","Christian","Herren","D","BC Langen 83","BSV Langen 83"]
["Fritz 33222",140114,33222,"Fritz","Michael","Sen A","D","BC Wiesbaden","BC Wiesbaden e.V."]
["Schenker 33223",140115,33223,"Schenker","Raik","Sen A","D","BC Wiesbaden","BC Wiesbaden e.V."]
["Otterbein 33226",140126,33226,"Otterbein","Jens","Herren","C","Blau-Gelb Fulda Strikers","PSV BG Fulda 1934/61 e.V."]
["Otterbein 33227",140124,33227,"Otterbein","Sandra","Damen","D","Blau-Gelb Fulda Strikers","PSV BG Fulda 1934/61 e.V."]
["Otterbein 33228",140125,33228,"Otterbein","Andre","Herren","D","Blau-Gelb Fulda Strikers","PSV BG Fulda 1934/61 e.V."]
["Umbach 33229",140128,33229,"Umbach","Christian","Herren","A","BV 77 Frankfurt","BV 77 Frankfurt"]
["Da Costa Araujo 33230",140132,33230,"Da Costa Araujo","Carlos","Sen A","D","BSV Dieburg","1. BSV Dieburg e.V. 1992"]
["Preis 33231",140138,33231,"Preis","Alexander","Sen A","D","FTG-BC Frankfurt","FTG 1847 Frankfurt"]
["Thorun 33232",140139,33232,"Thorun","Connie Wai Fan","Damen","E","BC 83 Kelsterbach","KBV Kelsterbach"]
["Nguyen 33233",140140,33233,"Nguyen","Boris","Jug A","E","BC 83 Kelsterbach","KBV Kelsterbach"]
["Frost 33237",140148,33237,"Frost","Gerhard","Sen B","D","BC Darmstadt","1. BSV Darmstadt 1973"]
["Handtusch 33238",142962,33238,"Handtusch","Kai","Jug B","E","BC Gießen","1. BSV Gießen"]
["Krybus 33239",142961,33239,"Krybus","Peter","Herren","E","BC 2000 Aschaffenburg","1. BV Aschaffenburg e.V."]
["Zeller 33241",142997,33241,"Zeller","Isabell Marie","Jun","F","BV Pinoy Frankfurt","BV Pinoy Frankfurt e.V."]
["Zeller 33242",142996,33242,"Zeller","Jörg","Sen A","B","BV Pinoy Frankfurt","BV Pinoy Frankfurt e.V."]
["Zeller 33243",142995,33243,"Zeller","Patrick","Herren","B","BV Pinoy Frankfurt","BV Pinoy Frankfurt e.V."]
["Catibog-Krüger 33244",142994,33244,"Catibog-Krüger","Catherine","Damen","D","BV Pinoy Frankfurt","BV Pinoy Frankfurt e.V."]
["Palma 33245",142993,33245,"Palma","Sigrid Elaine","Damen",null,"BV Pinoy Frankfurt","BV Pinoy Frankfurt e.V."]
["Stuckert 33246",143003,33246,"Stuckert","Willi","Herren","D","Finale Kassel","BSV Kassel"]
["Klassen 33248",143010,33248,"Klassen","Eugen","Herren","F","BC Gießen","1. BSV Gießen"]
["Heun 33249",143029,33249,"Heun","Susan","Damen","E","Blau-Gelb Fulda Strikers","PSV BG Fulda 1934/61 e.V."]
["Heil 33250",143031,33250,"Heil","Sven","Herren","E","Blau-Gelb Fulda Strikers","PSV BG Fulda 1934/61 e.V."]
["Belletz 33251",143032,33251,"Belletz","Antonia","Damen","E","Blau-Gelb Fulda Strikers","PSV BG Fulda 1934/61 e.V."]
["Kochanski 33252",143033,33252,"Kochanski","Louisa","Damen",null,"Blau-Gelb Fulda Strikers","PSV BG Fulda 1934/61 e.V."]
["Krohn 33254",143037,33254,"Krohn","Andreas","Herren","D","Citystrikers","BC Citystrikers"]
["Da Silva Gomes 33255",143040,33255,"Da Silva Gomes","Joel","Jug B","F","BC 83 Kelsterbach","KBV Kelsterbach"]
["Kvocka 33256",143041,33256,"Kvocka","Jannik","Jug B","F","BC 83 Kelsterbach","KBV Kelsterbach"]
["Stotz 33257",144503,33257,"Stotz","Helmut","Herren","D","Finale Kassel","BSV Kassel"]
["Spelten 33258",144508,33258,"Spelten","Christopher","Jug A",null,"Phönix Frankfurt","BV 95 Phönix Frankfurt e.V."]
["Bürkner 33259",144506,33259,"Bürkner","Andrea","Sen B","E","BC 2000 Aschaffenburg","1. BV Aschaffenburg e.V."]
["Shaghaghi-Kandevani 33260",144510,33260,"Shaghaghi-Kandevani","Peyman","Sen A","D","BC Darmstadt","1. BSV Darmstadt 1973"]
["Geisler 33261",144516,33261,"Geisler","Erik","Herren",null,"Queer-Striker","Frankfurter Volleyball Verein e.V."]
["Deutsch 33262",144518,33262,"Deutsch","Wolfgang","Sen B","D","Bowlingsportclub Bensheim 08 e.V","Bowlingsportclub Bensheim 08 e.V"]
[{"$f":"D643&\" \"&C643","v":"Glock 33264"},144528,33264,"Glock","Daniel","Herren","C","Condor Steinheim","BV Hanau"]
["Diekmann 33265",144531,33265,"Diekmann","Sandra","Damen",0,"Mainhattan Bowlers Frankfurt","Mainhattan Bowlers Frankfurt"]
["Reuter 33266",144464,33266,"Reuter","Sascha","Herren","E","Mainhattan Bowlers Frankfurt","Mainhattan Bowlers Frankfurt"]
["Stork 33267",144466,33267,"Stork","Volker","Sen A","C","BSV Dieburg","1. BSV Dieburg e.V. 1992"]
["Löbig 33268",144468,33268,"Löbig","Patrick","Herren","E","BSV Dieburg","1. BSV Dieburg e.V. 1992"]
["Gröger 33271",144488,33271,"Gröger","Katrin","Damen",null,"BC 2000 Aschaffenburg","1. BV Aschaffenburg e.V."]
["Teisler 33272",144493,33272,"Teisler","Lutz","Herren","C","BC Wiesbaden","BC Wiesbaden e.V."]
["Harzer 33273",144496,33273,"Harzer","Christopher","Herren","D","BC 67 Hanau","BV Hanau"]
["Knöchel 33274",144497,33274,"Knöchel","Frank","Sen A","D","BC 67 Hanau","BV Hanau"]
["Wollmann 33275",146042,33275,"Wollmann","Martin","Herren",null,"SW Friedberg","Schwarz Weiss Friedberg"]
["Roth 33276",146049,33276,"Roth","Sebastian","Jug A",null,"FTG-BC Frankfurt","FTG 1847 Frankfurt"]
["Tilger 33277",null,33277,"Tilger","Tina","Damen","D","BV Pinoy Frankfurt","BV Pinoy Frankfurt e.V."]
["Kiel 33278",146120,33278,"Kiel","Manuela","Damen",null,"Finale Kassel","BSV Kassel"]
["Friemer 33279",143122,33279,"Friemer","Corinna","Damen",0,"Bowlingsportclub Bensheim 08 e.V","Bowlingsportclub Bensheim 08 e.V"]
["Schmidt 33282",146153,33282,"Schmidt","Thomas","Sen A",null,"SW Friedberg","Schwarz Weiss Friedberg"]
["Dürr 33283",146149,33283,"Dürr","Mathias","Sen A",null,"BSV Dieburg","1. BSV Dieburg e.V. 1992"]
["Blaye 33284",146161,33284,"Blaye","Stephen","Herren",0,"Blau-Gelb Fulda Strikers","PSV BG Fulda 1934/61 e.V."]
["Ihm 33285",146190,33285,"Ihm","Julian","Herren",0,"Blau-Gelb Fulda Strikers","PSV BG Fulda 1934/61 e.V."]
["Garcia 33286",146191,33286,"Garcia","Eduardo","Herren",0,"Blau-Gelb Fulda Strikers","PSV BG Fulda 1934/61 e.V."]
["Lega 33287",146192,33287,"Lega","Rene","Herren",0,"Blau-Gelb Fulda Strikers","PSV BG Fulda 1934/61 e.V."]
["Duringer 33288",146193,33288,"Duringer","Karin","Sen A",0,"Blau-Gelb Fulda Strikers","PSV BG Fulda 1934/61 e.V."]
["Schmitt 33289",146194,33289,"Schmitt","Markus","Sen A",0,"Blau-Gelb Fulda Strikers","PSV BG Fulda 1934/61 e.V."]
["Weitzel 33290",146196,33290,"Weitzel","Benedikt","Herren",0,"TSV 1860 Hanau","BV Hanau"]
["Serat 33291",147208,33291,"Serat","Sasilak","Jug B",0,"BC 83 Kelsterbach","KBV Kelsterbach"]
["Aurami 33292",147209,33292,"Aurami","Christina","Jug B",0,"BC 83 Kelsterbach","KBV Kelsterbach"]
["Da Silva Gomes 33293",147210,33293,"Da Silva Gomes","Patricia","Jun",0,"BC 83 Kelsterbach","KBV Kelsterbach"]
["Reinfelder 33294",147211,33294,"Reinfelder","Patrick","Herren",0,"BV 1987 Frankfurt","BV 1987 Frankfurt"]
["Gallus 33295",147212,33295,"Gallus","Peter","Herren",0,"BV 1987 Frankfurt","BV 1987 Frankfurt"]
["Stephan 33296",147214,33296,"Stephan","Daniel","Jun",0,"Citystrikers","BC Citystrikers"]
["Figueiredo Mendes 33297",147217,33297,"Figueiredo Mendes","Kevin","Jun",0,"BC 83 Kelsterbach","KBV Kelsterbach"]
["Celerino 33298",147240,33298,"Celerino","Antonio","Sen A",0,"TSV 1860 Hanau","BV Hanau"]
["Scholz 33299",147219,33299,"Scholz","Sebastian","Jun",0,"BC Wiesbaden","BC Wiesbaden e.V."]
["Tran 33300",147220,33300,"Tran","Khoi Nguyen","Jug B",0,"BC Wiesbaden","BC Wiesbaden e.V."]
["Paulin 33301",147221,33301,"Paulin","Dennis","Herren",0,"BC Wiesbaden","BC Wiesbaden e.V."]
["Backes 33302",147222,33302,"Backes","Nicolai","Jun",0,"BC Wiesbaden","BC Wiesbaden e.V."]
["Metzroth 33303",147223,33303,"Metzroth","Jim","Jun",0,"BC Wiesbaden","BC Wiesbaden e.V."]
["Do 33304",147224,33304,"Do","Thanh Binh","Sen A",0,"BC Wiesbaden","BC Wiesbaden e.V."]
["Horn 33305",147225,33305,"Horn","Thomas","Sen A",0,"BC Wiesbaden","BC Wiesbaden e.V."]
["Tran 33306",147226,33306,"Tran","Thi Nhung","Damen",0,"BC Wiesbaden","BC Wiesbaden e.V."]
["Manns 33307",147227,33307,"Manns","Madeleine","Damen",0,"BC 2000 Aschaffenburg","1. BV Aschaffenburg e.V."]
["Tumulka 33308",147228,33308,"Tumulka","Johanna","Damen",0,"BC 2000 Aschaffenburg","1. BV Aschaffenburg e.V."]
["Heinrich 33309",147229,33309,"Heinrich","Sascha","Jug A",0,"BC 2000 Aschaffenburg","1. BV Aschaffenburg e.V."]
["Hess 33311",147241,33311,"Hess","Elke","Sen A",0,"SW Friedberg","Schwarz Weiss Friedberg"]
["St. Clair 33312",147249,33312,"St. Clair","Sebastian","Herren",0,"BSV Dieburg","1. BSV Dieburg e.V. 1992"]
["Dengs 33313",147353,33313,"Dengs","Kevin","Herren",0,"BV 77 Frankfurt","BV 77 Frankfurt"]
["Dengs 33314",147352,33314,"Dengs","Marco","Herren",0,"BV 77 Frankfurt","BV 77 Frankfurt"]
[]
[]
[]
[]
[]
[]
[]
[]
[]
[]
[]
[]
[]
[]
[]
[]
[]
[]
[]
[]
[]
[]
[]
[]
[]
[]
[]
[]
[]
[]
[]
[]
[]
[]
[]
[]
[]
[]
[]
[]
[]
[]
[]
[]
[]
[]
[]
[]
[]
[]
[]
[]
[]
[]
[]
[]
[]
[]
[]
[]
[]
[]
[]
[]
[]
[]
[]
[]
[]
[]
[]
[]
[]
[]
[]
[]
[]
[]
[]
[]
[]
[]
[]
[]
[]
[]
[]
[]
[]
[]
[]
[]
[]
[]
[]
[]
[]
[]
[]
[]
[]
[]
[]
[]
[]
[]
[]
[]
[]
[]
[]
[]
[]
[]
[]
[]
[]
[]
[]
[]
[]
[]
[]
[]
[]
[]
[]
[]
[]
[]
[]
[]
[]
[]
[]
[]
[]
[]
[]
[]
[]
[]
[]
[]
[]
[]
[]
[]
[]
[]
[]
[]
[]
[]
[]
[]
[]
[]
[]
[]
[]
[]
[]
[]
[]
[]
[]
[]
[]
[]
[]
[]
[]
[]
[]
[]
[]
[]
[]
[]
[]
[]
[]
[]
[]
[]
[]
[]
[]
[]
[]
[]
[]
[]
[]
[]
[]
[]
[]
[]
[]
[]
[]
[]
[]
[]
[]
[]
[]
[]
[]
[]
[]
[]
[]
[]
[]
[]
[]
[]
[]
[]
[]
[]
[]
[]
[]
[]
[]
[]
[]
[]
[]
[]
[]
[]
[]
[]
[]
[]
[]
[]
[]
[]
[]
[]
[]
[]
[]
[]
[]
[]
[]
[]
[]
[]
[]
[]
[]
[]
[]
[]
[]
[]
[]
[]
[]
[]
[]
[]
[]
[]
[]
[]
[]
[]
[]
[]
[]
[]
[]
[]
[]
[]
[]
[]
[]
[]
[]
[]
[]
[]
[]
[]
[]
[]
[]
[]
[]
[]
[]
[]
[]
[]
[]
[]
[]
[]
[]
[]
[]
[]
[]
[]
[]
[]
[]
[]
[]
[]
[]
[]
[]
[]
[]
[]
[]
[]
[]
[]
[]
[]
[]
[]
[]
[]
[]
[]
[]
[]
[]
[]
[]
[]
[]
[]
[]
[]
[]
[]
[]
[]
[]
[]
[]
[]
[]
[]
[]
[]
[]
[]
[]
[]
[]
[]
[]
[]
[]
[]
[]
[]
[]
[]
[]
[]
[]
[]
[]
[]
[]
[]
[]
[]
[]
[]
[]
[]
[]
[]
[]
[]
[]
[]
[]
[]
[]
[]
[]
[]
[]
[]
[]
[]
[]
[]
[]
[]
[]
[]
[]
[]
[]
[]
[]
[]
[]
[]
[]
[]
[]
[]
[]
[]
[]
[]
[]
[]
[]
[]
[]
[]
[]
[]
[]
[]
[]
[]
[]
[]
[]
[]
[]
[]
[]
[]
[]
[]
[]
[]
[]
[]
[]
[]
[]
[]
[]
[]
[]
[]
[]
[]
[]
[]
[]
[]
[]
[]
[]
[]
[]
[]
[]
[]
[]
[]
[]
[]
[]
[]
[]
[]
[]
[]
[]
[]
[]
[]
[]
[]
[]
[]
[]
[]
[]
[]
[]
[]
[]
[]
[]
[]
[]
[]
[]
[]
[]
[]
[]
[]
[]
[]
[]
[]
[]
[]
[]
[]
[]
[]
[]
[]
[]
[]
[]
[]
[]
[]
[]
[]
[]
[]
[]
[]
[]
[]
[]
[]
[]
[]
[]
[]
[]
[]
[]
[]
[]
[]
[]
[]
[]
[]
[]
[]
[]
[]
[]
[]
[]
[]
[]
[]
[]
[]
[]
[]
[]
[]
[]
[]
[]
[]
[]
[]
[]
[]
[]
[]
[]
[]
[]
[]
[]
[]
[]
[]
[]
[]
[]
[]
[]
[]
[]
[]
[]
[]
[]
[]
[]
[]
[]
[]
[]
[]
[]
[]
[]
[]
[]
[]
[]
[]
[]
[]
[]
[]
[]
[]
[]
[]
[]
[]
[]
[]
[]
[]
[]
[]
[]
[]
[]
[]
[]
[]
[]
[]
[]
[]
[]
[]
[]
[]
[]
[]
[]
[]
[]
[]
[]
[]
[]
[]
[]
[]
[]
[]
[]
[]
[]
[]
[]
[]
[]
[]
[]
[]
[]
[]
[]
[]
[]
[]
[]
[]
[]
[]
[]
[]
[]
[]
[]
[]
[]
[]
[]
[]
[]
[]
[]
[]
[]
[]
[]
[]
[]
[]
[]
[]
[]
[]
[]
[]
[]
[]
[]
[]
[]
[]
[]
[]
[]
[]
[]
[]
[]
[]
[]
[]
[]
[]
[]
[]
[]
[]
[]
[]
[]
[]
[]
[]
[]
[]
[]
[]
[]
[]
[]
[]
[]
[]
[]
[]
[]
[]
[]
[]
[]
[]
[]
[]
[]
[]
[]
[]
[]
[]
[]
[]
[]
[]
[]
[]
[]
[]
[]
[]
[]
[]
[]
[]
[]
[]
[]
[]
[]
[]
[]
[]
[]
[]
[]
[]
[]
[]
[]
[]
[]
[null,null,8436,"Gültling","Reiner","Sen A","C","BC Langen 83","BSV Langen 83"]
[null,null,8536,"Hidde","Jens","Sen C","D","BC 67 Hanau","BV Hanau"]
[null,null,8556,"Hofmann","Gerd","Herren","D","BC 89 Olympia Rüsselsheim","TuS Rüsselsheim"]
[null,null,8627,"Kasten","Hildegard","Sen A","E","SW Friedberg","Schwarz Weiss Friedberg"]
[null,27766,8660,"Muth","Andrea","Damen","E","BC Blau-Gelb Frankfurt","BV Blau-Gelb Frankfurt e.V."]
[null,null,8688,"Koslowsky","Ralf","Herren","D","FSV Frankfurt","FSV Frankfurt"]
[null,null,8711,"Kühne","Willy","Sen B",0,"BV Taifun Fulda","BV Taifun Fulda"]
[null,null,8789,"Maul","Manfred","Sen A",0,"BC Bad Hersfeld","BC Bad Hersfeld"]
[null,null,8791,"Mayer","Melanie","Damen",0,"TSV 1860 Hanau","BV Hanau"]
[null,null,8797,"Meissner","Hans-Joachim","Herren","C","BSV Oberrad","BSV 1990 Oberrad"]
[null,null,8819,"Miller","Frank-Robert","Sen A",0,"AAN Schwanheim","KBVS Schwanheim"]
[null,51228,8820,"Miller","Iris","Damen",0,"AAN Schwanheim","KBVS Schwanheim"]
[null,51178,8822,"Ming","Benjamin","Herren",0,"FSV Frankfurt","FSV Frankfurt"]
[null,null,8876,"Neiczer","Markus","Herren","A","BC Langen 83","BSV Langen 83"]
[null,null,8929,"Peluso","Alessandro","Jun",null,"BC 2005 Frankfurt","BV Frankfurt West"]
[null,null,8976,"Räder","Peter","Herren",0,"BC Gießen","1. BSV Gießen"]
[null,null,10130,"Balz","Arthur","Sen A",0,"City Bowler Kassel","City Bowler Kassel e.V."]
[null,66822,13779,"Eisermann","Dirk","Herren",0,"City Bowler Kassel","City Bowler Kassel e.V."]
[null,771713,15006,"Retke","Hannelore","Sen B",0,"BC Wiesbaden","BC Wiesbaden e.V."]
[null,null,15019,"Roberts","Maurice","Sen A","E","BC Devils","BV Oberstedtener Devils e.V."]
[null,null,15044,"Rühl","Reinhard","Sen C",0,"City Bowler Kassel","City Bowler Kassel e.V."]
[null,null,15071,"Schaubach","Manfred","Sen C","D","BV 77 Frankfurt","BV 77 Frankfurt"]
[null,null,15092,"Schinkario","Helmut","Sen B","D","BV 1987 Frankfurt","BV 1987 Frankfurt"]
[null,null,15137,"Scholl","Hans","Sen B","D","Cosmos Wiesbaden","BC Cosmos Wiesbaden"]
[null,null,15225,"Weiler","Julian","Herren","E","BV Römer Frankfurt","BV Römer Frankfurt"]
[null,null,15242,"Stöhr","Ulrike","Sen A","D","BC Nord West Ffm","BSV Nord West Frankfurt"]
[null,null,15244,"Stolte","Gabriele","Sen A",null,"BW Bornheim","Blau Weiss Bornheim"]
[null,null,15245,"Stolte","Günther","Sen A",null,"BW Bornheim","Blau Weiss Bornheim"]
[null,null,15316,"Veith","Marcus","Herren","B","Cosmos Wiesbaden","BC Cosmos Wiesbaden"]
[null,null,15325,"Vogel","Stefan","Herren","C","I-Bahn SC 34 Ffm","BV City Frankfurt"]
[null,null,15335,"Walter","Benedikt","Jug A","F","Phönix Frankfurt","BV 95 Phönix Frankfurt e.V."]
[null,null,15383,"Winter","Franz","Sen A","E","BC Nord West Ffm","BSV Nord West Frankfurt"]
[null,null,15390,"Wohlfarth","Hans-Jürgen","Herren","D","BV 1987 Frankfurt","BV 1987 Frankfurt"]
[null,null,15400,"Wühr","Lothar-Josef","Sen C",0,"AAN Schwanheim","KBVS Schwanheim"]
[null,null,15428,"Zöller","Dieter","Sen A","C","BC 75 Fortuna","BV 79 Obertshausen"]
[null,null,15496,"Eimuth","Natascha","Jug A","D","Phönix Frankfurt","BV 95 Phönix Frankfurt e.V."]
[null,null,15521,"Hastedt","Ulla","Damen","D","BC 83 Kelsterbach","KBV Kelsterbach"]
[null,null,15527,"Grunenberg","Anja","Damen",null,"BV 1987 Frankfurt","BV 1987 Frankfurt"]
[null,null,15528,"Grunenberg","Sven","Herren","E","BV 1987 Frankfurt","BV 1987 Frankfurt"]
[null,null,15542,"Fuchs","Olga","Damen","D","BC Kellerstrikers","BC Keller Strikers Dillenburg e.V."]
[null,null,15562,"Kasinski","Joel","Jug A",null,"BC 83 Kelsterbach","KBV Kelsterbach"]
[null,null,15609,"Heckmann","Matthias","Herren","D","BC Devils","BV Oberstedtener Devils e.V."]
[null,null,15625,"Dörflinger","Justus","Herren","E","BC Devils","BV Oberstedtener Devils e.V."]
[null,null,15648,"Schlamp","Matthias","Jun",0,"Mainhattan Bowlers Frankfurt","Mainhattan Bowlers Frankfurt"]
[null,null,15661,"Roas","Jörg","Herren","D","BC 67 Hanau","BV Hanau"]
[null,null,15668,"Gödde","Birgit","Damen","E","BV Römer Frankfurt","BV Römer Frankfurt"]
[null,null,15695,"Demski","Tobias","Jug B",null,"BSV Dieburg","1. BSV Dieburg e.V. 1992"]
[null,27786,15700,"Pellmann","Heike","Damen","E","BV Römer Frankfurt","BV Römer Frankfurt"]
[null,null,15701,"Mengel","Mark","Herren",null,"BV Römer Frankfurt","BV Römer Frankfurt"]
[null,null,15716,"Schmied","Monika","Damen","F","KBC Kelsterbach","KBV Kelsterbach"]
[null,null,15720,"Trejic","Senijad","Herren","F","BC 75 Fortuna","BV 79 Obertshausen"]
[null,null,15724,"Schmied","Kevin","Jun","E","KBC Kelsterbach","KBV Kelsterbach"]
[null,39281,15726,"Schaffrina","Egon","Sen A",null,"BSV Dieburg","1. BSV Dieburg e.V. 1992"]
[null,39286,15729,"Köhler","Nicole","Damen","F","BSV Dieburg","1. BSV Dieburg e.V. 1992"]
[null,null,15730,"Netzker","Lars","Herren","F","BC Darmstadt","1. BSV Darmstadt 1973"]
[null,null,15736,"Dull","David","Jug A","D","BV Taifun Fulda","BV Taifun Fulda"]
[null,null,15744,"Meinhardt","Ralf","Herren",null,"BC 75 Fortuna","BV 79 Obertshausen"]
[null,null,15756,"Becker","Patrick","Jug B",0,"Jugend Bowling Club Hanau","BV Hanau"]
[null,null,15760,"Wiegand","Ilias","Jug C",0,"BC Wiesbaden","BC Wiesbaden e.V."]
[null,40169,15761,"Sperle","Calvin","Jug C",0,"BC Wiesbaden","BC Wiesbaden e.V."]
[null,null,15776,"Schülner","Sabrina","Damen",0,"BV Römer Frankfurt","BV Römer Frankfurt"]
[null,null,15787,"Schädler","Sven","Herren",0,"BV 77 Frankfurt","BV 77 Frankfurt"]
[null,null,15790,"Franz","Sabine","Damen",0,"FTG-BC Frankfurt","FTG 1847 Frankfurt"]
[null,null,15797,"Modrak","Rüdiger","Herren",0,"Bowlingsportclub Bensheim 08 e.V","Bowlingsportclub Bensheim 08 e.V"]
[null,null,15800,"Wiegand","Daniel","Herren",0,"Bowlingsportclub Bensheim 08 e.V","Bowlingsportclub Bensheim 08 e.V"]
[null,null,15819,"Göbel","Laura","Jug B",0,"BSV Dieburg","1. BSV Dieburg e.V. 1992"]
[null,null,15820,"Khumcharoen","Krisna","Jug A",0,"BSV Dieburg","1. BSV Dieburg e.V. 1992"]
[null,null,15852,"Zambon","Adriano","Herren",0,"City Bowler Kassel","City Bowler Kassel e.V."]
[null,null,15853,"Borzych","Angelika","Sen A",0,"City Bowler Kassel","City Bowler Kassel e.V."]
[null,null,15854,"Saupe","Jens","Herren",0,"City Bowler Kassel","City Bowler Kassel e.V."]
[null,27186,24169,"Brach","Patrick","Herren","B","BC Kellerstrikers","BC Keller Strikers Dillenburg e.V."]